{"text_format":"3","workbook":"xlsx","n_sheets":8,"sheets":["Instrucciones","1. Retos y oportunidades","2.Seleccionar categoría ","3.Revisar los servicios de gest","3. Repaso de servicios 4.0(opc)","3. Resumen ejecutivo","4. Contenido de servicios","5.Plan de acción"],"not_rendered":{"images":15,"defined_names":5},"read":"whole","date_system":"1900"}

{"sheet":"Instrucciones","index":0,"n_rows":154,"n_cols":72,"rows_kept":154,"merged":[[3,1,3,80],[5,1,5,80],[7,1,7,80],[9,1,9,80],[10,1,10,80],[11,1,11,80],[13,1,13,80],[15,1,16,80],[17,54,17,79],[18,54,20,79],[22,2,22,13],[22,17,22,50],[22,54,22,79],[24,2,24,13],[24,17,33,50],[24,54,25,63],[24,64,25,70],[24,71,25,79],[25,2,33,13],[26,54,27,63],[26,64,27,70],[26,71,27,79],[28,54,29,63],[28,64,29,70],[28,71,29,79],[30,54,31,63],[30,64,31,70],[30,71,31,79],[32,54,33,63],[32,64,33,70],[32,71,33,79],[35,2,35,13],[35,17,44,50],[35,54,36,63],[35,64,36,70],[35,71,36,79],[36,2,44,13],[37,54,38,63],[37,64,38,70],[37,71,38,79],[39,54,40,63],[39,64,40,70],[39,71,40,79],[41,54,42,63],[41,64,42,70],[41,71,42,79],[43,54,44,63],[43,64,44,70],[43,71,44,79],[46,2,46,13],[46,17,55,50],[46,54,47,63],[46,64,47,70],[46,71,47,79],[47,2,51,13],[48,54,49,63],[48,64,49,70],[48,71,49,79],[50,54,51,63],[50,64,51,70],[50,71,51,79],[52,2,55,13],[52,54,53,63],[52,64,53,70],[52,71,53,79],[54,54,55,63],[54,64,55,70],[54,71,55,79],[57,2,57,13],[57,17,66,50],[57,54,58,63],[57,64,58,70],[57,71,58,79],[58,2,66,13],[59,54,60,63],[59,64,60,70],[59,71,60,79],[61,54,62,63],[61,64,62,70],[61,71,62,79],[63,54,64,63],[63,64,64,70],[63,71,64,79],[65,54,66,63],[65,64,66,70],[65,71,66,79],[68,2,68,13],[68,17,80,50],[69,2,80,13],[69,54,70,63],[69,64,70,70],[69,71,70,79],[71,54,72,63],[71,64,72,70],[71,71,72,79],[73,54,74,63],[73,64,74,70],[73,71,74,79],[75,54,76,63],[75,64,76,70],[75,71,76,79],[77,54,78,63],[77,64,78,70],[77,71,78,79],[83,1,83,80],[85,12,85,46],[85,48,85,79],[87,12,95,42],[87,46,95,80],[97,1,97,80],[99,3,99,13],[99,20,99,34],[99,45,100,55],[99,67,100,77],[107,45,107,55],[108,3,108,13],[108,19,108,33],[108,45,108,55],[108,67,108,77],[111,1,111,80],[113,2,113,21],[113,23,113,40],[113,42,113,59],[113,61,113,79],[114,2,114,21],[114,23,114,40],[114,61,114,79],[115,2,115,21],[115,23,115,40],[115,42,115,59],[115,61,115,79],[126,1,126,80],[140,1,140,80],[143,1,143,14],[147,1,149,80]]}
[null,"Servicios de gestión de PEI de la ONUDI (V1)"]
[null,"HERRAMIENTA DE SERVICIOS DE VALOR AÑADIDO DE LA ADMINISTRACIÓN PEI: INSTRUCCIONES"]
[]
[null,"JUSTIFICACIÓN DE LA HERRAMIENTA"]
[]
[null,"En muchos parques industriales, la administración del parque brinda los servicios «tradicionales» a sus inquilinos, como el arrendamiento o la venta de terrenos industriales a las empresas arrendatarias; la facturación del suministro de electricidad y agua; el mantenimiento de carreteras, vallas y edificios de oficinas dentro del parque; y los servicios básicos de seguridad. Sin embargo, hay muchos servicios de valor añadido que la administración del parque podría brindar para:\n• Ayudar a las empresas arrendatarias a aumentar su desempeño económico, ambiental y social\n• Reducir los riesgos del parque y las empresas, haciendo hincapié en que los riesgos ambientales y sociales son riesgos empresariales;\n• Crear un parque industrial más eficiente en el uso de los recursos y rentable, que sea más competitivo y atractivo para la inversión;\n• Permitir que las empresas arrendatarias se concentren en su negocio principal y generen ahorros de costos a partir de las sinergias de servicios.\n\nAdemás, la industria 4.0 ofrece nuevas soluciones en la cadena de valor de producción a través del desarrollo de las TIC (por ejemplo, Internet de las cosas) y soluciones de automatización inteligentes que son aplicables a la gestión de parques industriales y a las empresas arrendatarias. La industria 4.0 tendrá una influencia significativa en el diseño y el funcionamiento de los procesos industriales y las marcas industriales.\n"]
[]
[null,"OBJETIVOS DE LA HERRAMIENTA"]
[]
[null,"El objetivo de esta herramienta es fortalecer y promover los servicios que brinda la administración del parque a las empresas arrendatarias y, por lo tanto, aumentar la «relación calidad-precio» que brinda la administración del parque a las empresas arrendatarias y garantizar o expandir los ingresos de las entidades de administración del parque. La herramienta ayuda a las entidades de gestión de parques industriales y a las empresas arrendatarias a revisar, priorizar, determinar el alcance y planificar las acciones de los servicios adecuados para su propósito y de valor añadido para sus empresas de parques e inquilinos."]
[null,"Además, la herramienta ayuda a los parques industriales a trabajar conforme al Marco Internacional para los Parques Ecoindustriales (ONUDI, GBM, GIZ)."]
[null,"Dado que la industria 4.0 brinda oportunidades para que la administración de parques extienda sus servicios a las empresas arrendatarias para aumentar su competitividad y eficiencia, esta herramienta incluye hojas de trabajo opcionales sobre servicios específicos de la industria 4.0 que la administración del parque podría considerar."]
[]
[null,"PASOS E INSTRUCCIONES"]
[]
[null,"La herramienta está diseñada para ser utilizada por las entidades administradoras de parques en colaboración con sus empresas arrendatarias, cuando sea necesario con el apoyo de proveedores de servicios (por ejemplo, Centros nacionales de producción más limpia (consultorías) y/o desarrollo internacional, agencias (por ejemplo, por miembros del personal de ONUDI)."]
[]
[{"$nulls":54},"Lugares donde se puede iniciar los pasos"]
[{"$nulls":54},"Lo ideal es que todas las gestiones se realicen en la oficina de gestión del parque industrial o en un taller con la dirección del parque y las empresas arrendatarias. Si es necesario, los pasos también se pueden hacer en línea a través de la pantalla / compartir archivos."]
[]
[]
[]
[null,null,"PASOS A SEGUIR",{"$nulls":14},"INSTRUCCIONES DETALLADAS",{"$nulls":36},"TIEMPO ESTIMADO PARA COMPLETAR LA HERRAMIENTA"]
[]
[null,null,"PASO 1",{"$nulls":14},"Este paso guía a las empresas administradoras de parques y a empresas arrendatarias a resumir los principales desafíos, oportunidades y problemas estratégicos a los que se enfrenta su parque industrial. Esto se lleva a cabo como un paso inicial, ya que los servicios de valor añadido que birndan las entidades de administración del parque abordan idealmente los desafíos y oportunidades comunes subyacentes a los que se enfrentan el parque industrial y las empresas arrendatarias.\n\nLos desafíos y oportunidades se revisan desde una perspectiva económica, ambiental y social.",{"$nulls":36},"La inversión de tiempo está sujeto al nivel de detalle deseado",{"$nulls":9},"Análisis básico ",{"$nulls":6},"Análisis detallado"]
[null,null,"Resumir desafíos clave, oportunidades, y cuestiones estratégicas respecto al parque industrial"]
[{"$nulls":54},"Gestión de parque industrial",{"$nulls":9},"0.25 personas/día",{"$nulls":6},"0.5 personas/día"]
[]
[{"$nulls":54},"Por empresa arrendataria",{"$nulls":9},"0.1 personas/día",{"$nulls":6},"0.25 personas/día"]
[]
[{"$nulls":54},"Experto en PEI / consultor",{"$nulls":9},"0.5 personas/día",{"$nulls":6},"1 persona por día"]
[]
[{"$nulls":54},"Gerente/coordinador de\nagencia de desarrollo",{"$nulls":9},"0.1 personas/día",{"$nulls":6},"0.25 personas/día"]
[]
[]
[null,null,"PASO 2",{"$nulls":14},"El propósito de este paso es hacer un «escaneo rápido» de todas las categorías de servicios incluidas en la herramienta y seleccionar las categorías que se revisarán en detalle en el siguiente paso de la herramienta. Este paso permitirá un uso eficaz de la herramienta en los pasos siguientes.\n\nEste paso también incluye las categorías de servicios opcionales de la Industria 4.0.",{"$nulls":36},"La inversión de tiempo está sujeto al nivel de detalle deseado",{"$nulls":9},"Análisis básico ",{"$nulls":6},"Análisis detallado"]
[null,null,"Seleccionar las categorias de servicios para ser revisadas a detalle"]
[{"$nulls":54},"Gestión de parque industrial",{"$nulls":9},"0.1 personas/día",{"$nulls":6},"0.25 personas/día"]
[]
[{"$nulls":54},"Por empresa arrendataria",{"$nulls":9},"0.1 personas/día",{"$nulls":6},"0.25 personas/día"]
[]
[{"$nulls":54},"Experto en PEI / consultor",{"$nulls":9},"0.25 personas/día",{"$nulls":6},"0.5 personas/día"]
[]
[{"$nulls":54},"Gerente/coordinador de\nagencia de desarrollo",{"$nulls":9},"0.1 personas/día",{"$nulls":6},"0.25 personas/día"]
[]
[]
[null,null,"PASO 3",{"$nulls":14},"Este paso guía a las empresas administradoras y arrendatarias del parque a revisar una larga lista de servicios de valor añadido categorizados y a definir los servicios específicos para el parque industrial.\n\nLos servicios de valor añadido se priorizan cualitativamente en función de su viabilidad prevista, los beneficios y el interés de la administración del parque y las empresas arrendatarias.\n\nLos servicios de valor añadido más alcanzables, que muestran los mayores beneficios e interés esperados por parte de la administración del parque/empresas, se priorizan y recomiendan para su ejecución a corto plazo.",{"$nulls":36},"La inversión de tiempo está sujeto al nivel de detalle deseado",{"$nulls":9},"Análisis básico ",{"$nulls":6},"Análisis detallado"]
[null,null,"Revisar y priorizar los posibles servicios de valor añadido de la administración de parques."]
[{"$nulls":54},"Gestión de parque industrial",{"$nulls":9},"0.5 personas/día",{"$nulls":6},"1 persona por día"]
[]
[{"$nulls":54},"Por empresa arrendataria",{"$nulls":9},"0.25 personas/día",{"$nulls":6},"0.5 personas/día"]
[]
[{"$nulls":54},"Experto en PEI / consultor",{"$nulls":9},"1 persona por día",{"$nulls":6},"2 personas por día"]
[]
[{"$nulls":54},"Gerente/coordinador de\nagencia de desarrollo",{"$nulls":9},"0.25 personas/día",{"$nulls":6},"0.5 personas/día"]
[]
[]
[null,null,"PASO 4",{"$nulls":14},"Este paso ayuda a la administración del parque y a las empresas arrendatarias a definir los servicios de valor añadido priorizados en los siguientes aspectos:\n• Áreas de enfoque y características específicas que se incluirán en los servicios de valor añadido\n• Opciones de recuperación de costos y/o distribución de beneficios\n• Empresas arrendatarias objetivo\n• Factores de éxito para desarrollar e implementar los servicios de valor añadido\n• Posibles desafíos y medios para abordarlos",{"$nulls":36},"La inversión de tiempo está sujeto al nivel de detalle deseado",{"$nulls":9},"Análisis básico ",{"$nulls":6},"Análisis detallado"]
[null,null,"Alcance prioritario de los servicios de valor añadido de la gestión de parques"]
[{"$nulls":54},"Gestión de parque industrial",{"$nulls":9},"1 persona por día",{"$nulls":6},"2 personas por día"]
[]
[{"$nulls":54},"Por empresa arrendataria",{"$nulls":9},"0.25 personas/día",{"$nulls":6},"0.5 personas/ día"]
[]
[{"$nulls":54},"Experto en PEI / consultor",{"$nulls":9},"2 personas por día",{"$nulls":6},"3 personas por día"]
[]
[{"$nulls":54},"Gerente/coordinador de\nagencia de desarrollo",{"$nulls":9},"0.25 personas/día",{"$nulls":6},"0.5 personas/ día"]
[]
[]
[null,null,"PASO 5",{"$nulls":14},"\nSiguiendo el alcance de los servicios de valor añadido priorizados, este paso guía a la administración del parque y a las empresas arrendatarias a producir un plan práctico con acciones a corto plazo para desarrollar e implementar servicios seleccionados.\nLa plantilla de plan de acción que se proporciona en esta herramienta incluye los siguientes elementos:\n• Acciones clave a corto plazo\n• Rol principal\n• Rol de apoyo\n• Cronograma\n• Comentarios y avances en las acciones\nReconociendo que es posible que la administración del parque ya cuente con sistemas para administrar sus actividades, se prevé que la planificación de la acción de los servicios de valor añadido priorizados se adapte a los sistemas existentes."]
[null,null,"Planificación de acciones para priorizar los servicios de valor añadido de la gestión de los parques",{"$nulls":51},"La inversión de tiempo está sujeto al nivel de detalle deseado",{"$nulls":9},"Análisis básico ",{"$nulls":6},"Detailed \nanalysis"]
[]
[{"$nulls":54},"Gestión de parque industrial",{"$nulls":9},"1 persona por día",{"$nulls":6},"2 personas por día"]
[]
[{"$nulls":54},"Por empresa arrendataria",{"$nulls":9},"0.25 personas por día",{"$nulls":6},"0.5 personas/ día"]
[]
[{"$nulls":54},"Experto en PEI / consultor",{"$nulls":9},"1 persona por día",{"$nulls":6},"2 personas por día"]
[]
[{"$nulls":54},"Gerente/coordinador de\nagencia de desarrollo",{"$nulls":9},"0.25 personas/ día",{"$nulls":6},"0.5 personas/ día"]
[]
[]
[]
[]
[]
[null,"EJEMPLO DE APLICACIÓN PRÁCTICA"]
[]
[{"$nulls":12},"Programas mundiales de parques ecoindustriales y de producción más limpia y eficientes en el uso de los recursos",{"$nulls":35},"Lecciones aprendidas sobre servicios de gestión de parques con valor añadido"]
[]
[{"$nulls":12},"Esta herramienta se basa en las experiencias prácticas realizadas hasta la fecha con gestores de parques y empresas arrendatarias de parques industriales de múltiples países (por ejemplo, China, Colombia, Egipto, India, Indonesia, Marruecos, Perú, Sudáfrica, Ucrania y Vietnam) como parte del Programa mundial para una producción más limpia y eficiente en el uso de los recursos (20012 - 2018) y del Programa mundial de parques ecoindustriales (2019-2023).\n\nPuede descargar información detallada sobre los logros y las principales conclusiones del trabajo de los parques ecoindustriales del Programa Mundial de Parques Ecoindustriales haciendo clic en el icono de la publicación de la izquierda.",{"$nulls":33},"• En muchos casos los servicios de valor añadido ofrecidos por la gestión del parque a sus empresas arrendatarias son oportunidades de ganancia rápida para un parque industrial que a menudo no requieren una inversión financiera significativa.\n\n• El liderazgo de la dirección del parque al coordinar y facilitar los servicios de valor añadido con las empresas arrendatarias y las partes interesadas externas es un factor crítico para el éxito.\n\n• Hay muchos tipos de servicios de valor añadido que pueden ser prestados por la gestión del parque. Es fundamental identificar los servicios más prometedores, con mayores beneficios, viabilidad e interés para la gestión del parque y las empresas arrendatarias. Se recomienda un enfoque paso a paso."]
{"$rows_empty":9}
[null,"BUENAS PRÁCTICAS INTERNACIONALES DE SERVICIOS DE VALOR AÑADIDO PRESTADOS POR LA GESTIÓN DE PARQUES INDUSTRIALES"]
[]
[{"$nulls":3},"EcoPlus, Austria",{"$nulls":16},"Consejo de Industrias de Kwinana, Australia",{"$nulls":24},"Kalundborg Symbiosis / Centro de Simbiosis, Dinamarca",{"$nulls":21},"Corporación del Complejo Industrial de Corea (KICOX) "]
{"$rows_empty":7}
[{"$nulls":45},"http://www.symbiosis.dk/en/"]
[{"$nulls":3},"https://www.ecoplus.at/en/",{"$nulls":15},"https://kic.org.au/",{"$nulls":25},"https://symbiosecenter.dk/en/",{"$nulls":21},"http://www.kicox.or.kr/"]
[]
[]
[null,"LECTURAS ADICIONALES"]
[]
[null,null,"¿Dónde encontrar más información sobre las herramientas de PEIs de la ONUDI?",{"$nulls":20},"¿Qué queremos decir con parques ecoindustriales?",{"$nulls":18},"¿Cómo poner en práctica el Marco de los PEIs?",{"$nulls":18},"¿Cómo se implementan los Parques Ecoindustriales?"]
[null,null,"Manual para los recursos de la ONUDI sobre PEIs",{"$nulls":20},"Un marco internacional para los PEIs",{"$nulls":18},"Manual práctico para parques ecoindustriales",{"$nulls":18},"Manual de implementación de PEIs"]
[null,null,"(ONUDI, 2019)",{"$nulls":20},"(ONUDI, Grupo del Banco Mundial, GIZ, 2017)",{"$nulls":18},"(ONUDI, Grupo del Banco Mundial, GIZ y MOTIE 2018)",{"$nulls":18}," (ONUDI 2017)"]
{"$rows_empty":10}
[null,"LISTA DE ACRÓNIMOS"]
[]
[null,"PEI",{"$nulls":4},"Parque ecoindustrial",{"$nulls":35},"IA",{"$nulls":4},"Inteligencia artificial"]
[null,"GEI",{"$nulls":4},"Gases de efecto invernadero",{"$nulls":35},"RA",{"$nulls":4},"Realidad Aumentada"]
[null,"GIZ",{"$nulls":4},"Deutsche Gesellschaft für Internationale Zusammenarbeit GmbH",{"$nulls":35},"IC",{"$nulls":4},"Internet de las cosas"]
[null,"SST",{"$nulls":4},"Salud y seguridad en el trabajo",{"$nulls":35},"RM",{"$nulls":4},"Realidad mixta"]
[null,"ERPML",{"$nulls":4},"Eficiencia de recursos y producción más limpia",{"$nulls":35},"M2M",{"$nulls":4},"Máquina a máquina"]
[null,"SECO",{"$nulls":4},"Secretaría de Estado de Asuntos Económicos de Suiza ",{"$nulls":35},"RV",{"$nulls":4},"Realidad virtual"]
[null,"PYMES",{"$nulls":4},"Pequeña y mediana empresa (menos de 250 empleados) "]
[null,"ONUDI",{"$nulls":4},"Organización de las Naciones Unidas para el Desarrollo Industrial"]
[null,"GBM",{"$nulls":4},"Grupo del Banco Mundial"]
[null,"EDAR",{"$nulls":4},"Estación depuradora de aguas residuales"]
[]
[]
[null,"PREGUNTAS Y COMENTARIOS"]
[]
[null,"Para preguntas, comentarios o solicitar información, por favor enviar un correo electrónico a:"]
[]
[]
[null,"Versión de la herramienta: V2, Abril de 2022"]
[]
[null,"Descargo de responsabilidad: La ONUDI no se hace responsable de la aplicación de este instrumento y de sus resultados. La responsabilidad exclusiva de la aplicación de la herramienta recae en el usuario que la utiliza. Las denominaciones utilizadas y la presentación del material en este documento no implican la expresión de opinión alguna por parte de la ONUDI y sus órganos rectores respecto de la situación jurídica o de desarrollo de ningún país, territorio, ciudad o zona o de sus autoridades, ni respecto de la delimitación de sus fronteras o límites. Las opiniones expresadas en este documento son las de los autores y no reflejan necesariamente las opiniones de la ONUDI y sus órganos rectores."]
[]
[]
[]
[null,"Agradecimientos:"]
[null,"El autor principal de esta herramienta de servicio de gestión de PEI es Dick van Beers (consultor de ONUDI). El soporte técnico y la orientación fueron proporcionados por Klaus Tyrkko (asesor técnico principal de ONUDI)."]
[null,"El Programa Mundial de Parques Ecoindustriales (PMPE) (2019-2023) es posible gracias a la financiación proporcionada por el Gobierno Suizo a través de la Secretaría de Estado de Asuntos Económicos de Suiza (SECO)."]

{"sheet":"1. Retos y oportunidades","index":1,"n_rows":25,"n_cols":8,"rows_kept":25,"merged":[[1,1,3,4],[6,1,6,8],[8,4,8,6],[8,7,8,8],[9,1,12,1],[9,2,12,2],[9,4,9,6],[9,7,9,8],[10,4,10,6],[10,7,10,8],[11,4,11,6],[11,7,11,8],[12,4,12,6],[12,7,12,8],[13,1,16,1],[13,2,16,2],[13,4,13,6],[13,7,13,8],[14,4,14,6],[14,7,14,8],[15,4,15,6],[15,7,15,8],[16,4,16,6],[16,7,16,8],[17,1,20,1],[17,2,20,2],[17,4,17,6],[17,7,17,8],[18,4,18,6],[18,7,18,8],[19,4,19,6],[19,7,19,8],[20,4,20,6],[20,7,20,8],[21,1,24,1],[21,2,24,2],[21,4,21,6],[21,7,21,8],[22,4,22,6],[22,7,22,8],[23,4,23,6],[23,7,23,8],[24,4,24,6],[24,7,24,8]]}
[null,"Herramienta de servicios de gestión de PEI de la ONUDI (V1)"]
[null,"RESUMIR LOS PRINCIPALES RETOS, OPORTUNIDADES \nY CUESTIONES ESTRATÉGICAS A LAS QUE SE ENFRENTAN LOS PARQUES INDUSTRIALES",{"$nulls":3},"Nombre del pasque industrial:","Ingresar el nombre del parque industrial"]
[{"$nulls":5},"Periodo de evaluación:","Ingresar fecha"]
[{"$nulls":5},"Nombre de los asesores:","Ingresar nombre"]
[]
[]
[null,"Instrucciones: Este paso sirve de guía para que los gestores del parque y las empresas arrendatarias resuman los principales retos, oportunidades y cuestiones estratégicas a los que se enfrenta su parque industrial. Lo ideal es que los servicios de valor añadido prestados por las entidades gestoras del parque aborden los retos y oportunidades comunes subyacentes a los que se enfrentan el parque industrial y las empresas arrendatarias. Los retos y oportunidades se examinan desde una perspectiva económica, medioambiental y social."]
[]
[null,"Categoría","Ejemplos ilustrativos de retos, oportunidades y cuestiones estratégicas","Top 3","¿Cuáles son los principales retos, oportunidades y cuestiones estratégicas a los que se enfrenta el parque industrial?",null,null,"Brinde comentarios adicionales"]
[null,"Retos económicos, oportunidades y cuestiones estratégicas","• El parque industrial tiene dificultades para atraer nuevos inversores\n\n• Aumento de los costos de las materias primas esenciales que necesitan las empresas inquilinas",1,"Inserte aquí un desafío, una oportunidad o un tema estratégico clave"]
[{"$nulls":3},2,"Inserte aquí un desafío, una oportunidad o un tema estratégico clave"]
[{"$nulls":3},3,"Inserte aquí un desafío, una oportunidad o un tema estratégico clave"]
[{"$nulls":3},4,"Inserte aquí un desafío, una oportunidad o un tema estratégico clave"]
[null,"Retos medioambientales, oportunidades y cuestiones estratégicas","• Mayor escasez de agua, lo que aumenta la presión sobre los parques y las empresas para que reduzcan su consumo.\n\n• Tecnologías antiguas e ineficientes (por ejemplo, calderas) utilizadas por las empresas arrendatarias, que generan un elevado consumo de energía y contaminación del aire.",1,"Inserte aquí un desafío, una oportunidad o un tema estratégico clave"]
[{"$nulls":3},2,"Inserte aquí un desafío, una oportunidad o un tema estratégico clave"]
[{"$nulls":3},3,"Inserte aquí un desafío, una oportunidad o un tema estratégico clave"]
[{"$nulls":3},4,"Inserte aquí un desafío, una oportunidad o un tema estratégico clave"]
[null,"Retos sociales, oportunidades y cuestiones estratégicas","• Tensión con las comunidades locales sobre sus expectativas de que el parque/las empresas creen nuevos puestos de trabajo.\n\n• Contaminación por los efluentes generados por algunas empresas arrendatarias que afecta a los ríos y comunidades locales.",1,"Inserte aquí un desafío, una oportunidad o un tema estratégico clave"]
[{"$nulls":3},2,"Inserte aquí un desafío, una oportunidad o un tema estratégico clave"]
[{"$nulls":3},3,"Inserte aquí un desafío, una oportunidad o un tema estratégico clave"]
[{"$nulls":3},4,"Inserte aquí un desafío, una oportunidad o un tema estratégico clave"]
[null,"Otros retos, oportunidades y cuestiones estratégicas","• Incertidumbre sobre los impactos de la Industria 4.0 en los parques industriales y sus empresas inquilinas.\n\n* Falta de colaboración actual entre las empresas arrendatarias y las empresas, lo que provoca que se pierdan oportunidades. ",1,"Inserte aquí un desafío, una oportunidad o un tema estratégico clave"]
[{"$nulls":3},2,"Inserte aquí un desafío, una oportunidad o un tema estratégico clave"]
[{"$nulls":3},3,"Inserte aquí un desafío, una oportunidad o un tema estratégico clave"]
[{"$nulls":3},4,"Inserte aquí un desafío, una oportunidad o un tema estratégico clave"]

{"sheet":"2.Seleccionar categoría ","index":2,"n_rows":76,"n_cols":10,"rows_kept":76,"merged":[[1,1,3,4],[6,1,6,5],[8,3,8,7],[10,1,19,1],[10,2,14,2],[10,3,10,7],[11,3,11,7],[12,3,12,7],[13,3,13,7],[14,3,14,7],[15,3,15,7],[16,2,17,2],[16,3,16,7],[17,3,17,7],[18,3,18,7],[19,3,19,7],[20,1,23,1],[20,2,22,2],[20,3,20,7],[21,3,21,7],[22,3,22,7],[23,3,23,7],[24,1,33,1],[24,2,26,2],[24,3,24,7],[25,3,25,7],[26,3,26,7],[27,2,28,2],[27,3,27,7],[28,3,28,7],[29,2,31,2],[29,3,29,7],[30,3,30,7],[31,3,31,7],[32,2,33,2],[32,3,32,7],[33,3,33,7],[34,1,38,1],[34,3,34,7],[35,3,35,7],[36,2,38,2],[36,3,36,7],[37,3,37,7],[38,3,38,7],[39,1,41,1],[39,2,41,2],[39,3,39,7],[40,3,40,7],[41,3,41,7],[42,1,45,1],[42,3,42,7],[43,2,45,2],[43,3,43,7],[44,3,44,7],[45,3,45,7],[47,1,49,1],[47,2,49,2],[47,3,47,7],[48,3,48,7],[49,3,49,7],[50,1,53,1],[50,2,51,2],[50,3,50,7],[51,3,51,7],[52,3,52,7],[53,3,53,7],[54,1,64,1],[54,3,54,7],[55,2,56,2],[55,3,55,7],[56,3,56,7],[57,2,59,2],[57,3,57,7],[58,3,58,7],[59,3,59,7],[60,2,62,2],[60,3,60,7],[61,3,61,7],[62,3,62,7],[63,2,64,2],[63,3,63,7],[64,3,64,7],[65,1,71,1],[65,2,68,2],[65,3,65,7],[66,3,66,7],[67,3,67,7],[68,3,68,7],[69,3,69,7],[70,2,71,2],[70,3,70,7],[71,3,71,7],[72,1,75,1],[72,3,72,7],[73,2,75,2],[73,3,73,7],[73,9,75,9],[74,3,74,7],[75,3,75,7]]}
[null,"Herramienta de servicios de gestión de PEI de la ONUDI (V1)"]
[null,"SELECCIONE CATEGORÍAS DE SERVICIOS PARA SER REVISADAS A DETALLE",{"$nulls":3},"Nombre del parque industrial:",{"$f":"'1. Retos y oportunidades'!G2","v":"Ingresar el nombre del parque industrial"}]
[{"$nulls":5},"Periodo de evaluación:",{"$f":"'1. Retos y oportunidades'!G3","v":"Ingresar fecha"}]
[{"$nulls":5},"Nombre de los asesores:",{"$f":"'1. Retos y oportunidades'!G4","v":"Ingresar nombre"}]
[]
[]
[null,"Instrucciones: El propósito de este paso es realizar una «búsqueda rápida» de todas las categorías de servicio incluidas en la herramienta y seleccionar categorías para revisarlas a detalle en el siguiente paso de la herramienta. Este paso permitirá un uso efectivo de la herramienta en los pasos siguientes."]
[]
[null,"Principal categoría de servicios","Sub-categoría","Servicios de gestión de parques de valor añadido incluidos en cada categoría",{"$nulls":4},"¿Se revisarán esta categoría y servicios en el paso 3?","Comentarios"]
[null,"SERVICIOS DE GESTIÓN DE PARQUES CON VALOR AÑADIDO"]
[null,"Soporte empresarial","Desarrollo empresarial y comercialización","Ayudar con la contratación de nuevas empresas para el parque que sean sinérgicas y añadan valor a las empresas arrendatarias existentes.",{"$nulls":4},"Por favor seleccionar"]
[{"$nulls":3},"Proporcionar servicios de incubadora de empresas, incluido el enfoque en el desarrollo de las PYMEs.",{"$nulls":4},"Por favor seleccionar"]
[{"$nulls":3},"Coordinar los estudios de evaluación del mercado de interés común para las empresas arrendatarias (por ejemplo, el acceso a los mercados «verdes»).",{"$nulls":4},"Por favor seleccionar"]
[{"$nulls":3},"Coordinar los esfuerzos de los medios y la publicidad para las empresas arrendatarias.",{"$nulls":4},"Por favor seleccionar"]
[{"$nulls":3},"Proporcionar un centro comercial dentro del parque industrial.",{"$nulls":4},"Por favor seleccionar"]
[null,null,"Autoridades gubernamentales","Apoyar a las empresas arrendatarias en negociaciones con las autoridades (por ejemplo, permisos de operación, licencias comerciales).",{"$nulls":4},"Por favor seleccionar"]
[null,null,"Finanzas y banca","Apoyar a las empresas arrendatarias a identificar y acceder a fondos y subsidios.",{"$nulls":4},"Por favor seleccionar"]
[{"$nulls":3},"Proporcionar instalaciones bancarias dentro de los parques industriales.",{"$nulls":4},"Por favor seleccionar"]
[null,null,"Adquisiciones","Facilitar la compra conjunta por parte de la industria de materias primas y procesadas.",{"$nulls":4},"Por favor seleccionar"]
[null,null,"Investigación y desarrollo (IyD)","Coordinar el compromosio de las empresas arrendatarias con las instituciones de investigación y desarrollo.",{"$nulls":4},"Por favor seleccionar"]
[null,"Colaboración","Comunidad","Facilitar programas comunitarios en nombre del parque industrial y las empresas arrendatarias.",{"$nulls":4},"Por favor seleccionar"]
[{"$nulls":3},"Facilitar la participación de la comunidad en nombre de las empresas arrendatarias.",{"$nulls":4},"Por favor seleccionar"]
[{"$nulls":3},"Apoyar a los municipios en el desarrollo de locales comerciales comunales e intercomunales.",{"$nulls":4},"Por favor seleccionar"]
[null,null,"Comisiones de empresas arrendatarias","Instaurar y facilitar reuniones periódicas de los comités empresariales conjuntos para encontrar soluciones a los desafíos y oportunidades comunes a los que se enfrentan los parques industriales y las empresas.",{"$nulls":4},"Por favor seleccionar"]
[null,"Medio Ambiente","Energía","Coordinar el programa de apoyo para mejorar la eficiencia energética de las empresas arrendatarias.",{"$nulls":4},"Por favor seleccionar"]
[{"$nulls":3},"Proporcionar infraestructuras energéticas centralizadas y servicios públicos de interés y valor comunes a las empresas arrendatarias.",{"$nulls":4},"Por favor seleccionar"]
[{"$nulls":3},"Coordinar el plan para reaccionar ante los posibles impactos negativos debidos a los riesgos del cambio climático (olas de calor y sequías, tormentas e inundaciones).",{"$nulls":4},"Por favor seleccionar"]
[null,null,"Eficiencia de recursos","Apoyar a las empresas arrendatarias para que tengan acceso a proveedores de servicios que puedan identificar e implementar prácticas de producción más limpias y eficientes en el uso de los recursos.",{"$nulls":4},"Por favor seleccionar"]
[{"$nulls":3},"Facilitar el compromiso entre las empresas arrendatarias y las partes interesadas pertinentes en el desarrollo de sinergias industriales.",{"$nulls":4},"Por favor seleccionar"]
[null,null,"Desperdicios","Coordinar el programa de apoyo al parque industrial para aumentar la reutilización y el reciclaje de residuos a corto y mediano plazo.",{"$nulls":4},"Por favor seleccionar"]
[{"$nulls":3},"Coordinar/proporcionar servicios e instalaciones centralizados para la recolección, el almacenamiento, el reciclaje y la eliminación de residuos.",{"$nulls":4},"Por favor seleccionar"]
[{"$nulls":3},"Comprometerse con las empresas de gestión/reciclaje de residuos para proporcionar servicios de valor añadido a las empresas de parques e inquilinos.",{"$nulls":4},"Por favor seleccionar"]
[null,null,"Agua","Coordinar el programa de apoyo al parque industrial para aumentar la reutilización del agua a corto y mediano plazo.",{"$nulls":4},"Por favor seleccionar"]
[{"$nulls":3},"Proporcionar infraestructuras hídricas centralizadas y servicios públicos de interés y valor comunes a las empresas arrendatarias.",{"$nulls":4},"Por favor seleccionar"]
[null,"\nInfraestructura y Utilidades","Edificios","Facilitar el desarrollo de edificios sostenibles y más eficientes en el uso de los recursos («verdes») en el parque industrial.",{"$nulls":4},"Por favor seleccionar"]
[null,null,"Seguridad","Operar un sistema común de control y respuesta de seguridad para un parque industrial.",{"$nulls":4},"Por favor seleccionar"]
[null,null,"Transporte","Facilitar los sistemas de transporte compartidos entre las empresas arrendatarias.",{"$nulls":4},"Por favor seleccionar"]
[{"$nulls":3},"Proporcionar instalaciones y servicios logísticos y de almacenamiento centralizados.",{"$nulls":4},"Por favor seleccionar"]
[{"$nulls":3},"Proporcionar servicios comunes de mantenimiento de vehículos en parques industriales.",{"$nulls":4},"Por favor seleccionar"]
[null,"Gestión","Monitoreo y sistemas ","Facilitar el sistema de gestión (de calidad, ambiental, social) del parque industrial, alineado con los estándares internacionales.",{"$nulls":4},"Por favor seleccionar"]
[{"$nulls":3},"Establecer y poner en marcha un sistema de supervisión a nivel de parque, que incluya los resultados medioambientales, sociales y económicos y los factores de riesgo críticos.",{"$nulls":4},"Por favor seleccionar"]
[{"$nulls":3},"Poner en marcha un sistema de gestión y monitoreo de las quejas recibidas por el parque industrial.",{"$nulls":4},"Por favor seleccionar"]
[null,"Personas","Salud","Proporcionar instalaciones y servicios médicos centralizados a las empresas arrendatarias.",{"$nulls":4},"Por favor seleccionar"]
[null,null,"Trabajadores y competencias","Facilitar las asignaciones flexibles de los empleados entre las empresas arrendatarias.",{"$nulls":4},"Por favor seleccionar"]
[{"$nulls":3},"Organizar capacitaciones sobre temas de interés común para las empresas arrendatarias.",{"$nulls":4},"Por favor seleccionar"]
[{"$nulls":3},"Proporcionar una guardería para apoyar a los empleados de las empresas arrendatarias del parque industrial.",{"$nulls":4},"Por favor seleccionar"]
[null,"OPCIONAL: SERVICIOS DE LA INDUSTRIA 4.0"]
[null,"SOPORTE EMPRESARIAL","Centros de servicios, redes y agrupaciones","Instaurar un centro de servicio para fabricar piezas de repuesto, piezas de ingeniería, herramientas o maquetas con tecnología de fabricación aditiva",{"$nulls":4},"Por favor seleccionar"]
[{"$nulls":3},"\nEstablecer redes de la industria 4.0, por ejemplo, clústeres de innovación",{"$nulls":4},"Por favor seleccionar"]
[{"$nulls":3},"Establecer un centro de aplicaciones de la industria 4.0 para la demostración de componentes en condiciones de entorno de producción simuladas",{"$nulls":4},"Por favor seleccionar"]
[null,"Medio Ambiente","Energía","Proporcionar servicios de red de energía inteligente a parques industriales y empresas arrendatarias",{"$nulls":4},"Por favor seleccionar"]
[{"$nulls":3},"Intercambio de calor residual; diagnóstico de IA basado en IC para el intercambio de calor residual entre plantas o empresas en función de datos de temperatura y entalpía",{"$nulls":4},"Por favor seleccionar"]
[null,null,"Residuos","Proporcionar servicios inteligentes de gestión de residuos sólidos a parques industriales y empresas arrendatarias",{"$nulls":4},"Por favor seleccionar"]
[null,null,"Agua","Proporcionar servicios de red SmartWater a parques industriales y empresas arrendatarias",{"$nulls":4},"Por favor seleccionar"]
[null,"Infraestructura y Utilidades","Edificios","\nProporcionar servicios de edificios inteligentes a parques industriales y empresas arrendatarias",{"$nulls":4},"Por favor seleccionar"]
[null,null,"Seguridad","Uso de la identificación inteligente no solo para la entrada al parque, sino también para pagar por uso, como comida o compras; para acceder a áreas restringidas; para contar personas en caso de evacuaciones",{"$nulls":4},"Por favor seleccionar"]
[{"$nulls":3},"Proporcionar servicios inteligentes de seguridad y control de acceso para parques industriales",{"$nulls":4},"Por favor seleccionar"]
[null,null,"Transporte","Proporcionar servicios de SmartTransport a parques industriales y empresas arrendatarias",{"$nulls":4},"Por favor seleccionar"]
[{"$nulls":3},"Gestión de franjas horarias de camiones: Reducción del tiempo de espera, área de espera de los camiones, personal de seguridad y de portones",{"$nulls":4},"Por favor seleccionar"]
[{"$nulls":3},"Proporcionar seguimiento de la ubicación y el enrutamiento de las ID de herramientas, los contenedores, las personas, las entregas y otros vehículos alquilados a través de CPS con conexión a GPS e IC",{"$nulls":4},"Por favor seleccionar"]
[null,null,"Infraestructura","Mejorar la gestión de activos mediante un gemelo digital para infraestructuras con documentación y modelos digitales",{"$nulls":4},"Por favor seleccionar"]
[{"$nulls":3},"Proporcionar una estructura de infraestructura 4.0 para la industria, como la nube y la Internet de las cosas; implementación de una estructura de infraestructura en todo el parque para el movimiento de vehículos ",{"$nulls":4},"Por favor seleccionar"]
[{"$nulls":3},"Proporcionar una estructura de infraestructura 4.0 para la industria, como la nube e Internet de las cosas; implementación de una estructura de infraestructura en todo el parque para el movimiento de vehículos ",{"$nulls":4},"Por favor seleccionar"]
[null,null,"Mejora de mantenimiento","Mantenimiento a distancia de la infraestructura mediante soporte basado en RA",{"$nulls":4},"Por favor seleccionar"]
[{"$nulls":3},"Uso de robots para limpiar calles, cortar el césped y trabajar en superficies",{"$nulls":4},"Por favor seleccionar"]
[null,"Gestión","Comunicaciones","Organizar reuniones periódicas y reuniones ad hoc a distancia",{"$nulls":4},"Por favor seleccionar"]
[{"$nulls":3},"Comunicación estándar en todo el parque. Evitar que diferentes protocolos de comunicación impidan la comunicación directa entre diferentes objetos del parque.",{"$nulls":4},"Por favor seleccionar"]
[{"$nulls":3},"Modelo 3D de los activos de parques industriales y empresas basado en la fotogrametría para apoyar el marketing y la planificación de actividades",{"$nulls":4},"Por favor seleccionar"]
[{"$nulls":3},"Uso de la aplicación «App Parque Industrial» como plataforma de información",{"$nulls":4},"Por favor seleccionar"]
[null,null,"Big data","Proporcionar aplicaciones de Big Data e IA para el análisis de datos clave de las empresas, como los sistemas de gestión medioambiental y energética.",{"$nulls":4},"Por favor seleccionar"]
[null,null,"Monitoreo","Vigilancia y monitoreo del parque con drones y robots",{"$nulls":4},"Por favor seleccionar"]
[{"$nulls":3},"Proporcionar servicios de Monitoreo Inteligente en el parque industrial, incluyendo elementos como la calidad del aire, el ruido, la calidad del agua, el tráfico",{"$nulls":4},"Por favor seleccionar"]
[null,"Personas","Salud","Proporcionar atención médica de primera necesidad basada en RA («telemedicina»)",{"$nulls":4},"Por favor seleccionar"]
[null,null,"Trabajadores y competencias","Instaurar un centro de formación de Industria 4.0 con una fábrica de formación inteligente",{"$nulls":4},"Por favor seleccionar"]
[{"$nulls":3},"Instaurar un centro de capacitación para RV/RA/RM para la capacitación de procesos específicos, situaciones y diseños de lugares de trabajo, mantenimiento remoto, etc.",{"$nulls":4},"Por favor seleccionar"]
[{"$nulls":3},"«Evaluación de la preparación para la Industria 4.0» y consultoría sobre modelos de negocio, prestación de servicios de consultoría para introducir conceptos de parques industriales inteligentes",{"$nulls":4},"Por favor seleccionar"]

{"sheet":"3.Revisar los servicios de gest","index":3,"n_rows":50,"n_cols":16,"rows_kept":50,"merged":[[1,1,3,3],[1,5,1,7],[2,5,2,7],[3,5,3,7],[6,1,6,12],[9,1,9,4],[9,5,9,6],[9,7,9,8],[9,9,9,12],[9,14,9,15]]}
[null,"Herramienta de servicios de gestión de PEI de la ONUDI (V1)"]
[null,"REVISAR Y PRIORIZAR LOS SERVICIOS DE GESTIÓN DE PARQUES CON VALOR AGREGADO",null,null,"Nombre del parque industrial:",{"$f":"'1. Retos y oportunidades'!G2","v":"Ingresar el nombre del parque industrial"}]
[{"$nulls":4},"Periodo de evaluación:",{"$f":"'1. Retos y oportunidades'!G3","v":"Ingresar fecha"}]
[{"$nulls":4},"Nombre de los asesores:",{"$f":"'1. Retos y oportunidades'!G4","v":"Ingresar nombre"}]
[]
[]
[null,"Instrucciones: Este paso guía a la gestión del parque y a las empresas arrendatarias en la revisión de una larga lista de servicios de valor añadido categorizados y en la definición de servicios específicos para el parque industrial. Los servicios de valor añadido más factibles, que muestren los mayores beneficios previstos y el mayor interés por parte de la dirección del parque/empresas se priorizan y se recomiendan para acciones a corto plazo."]
[]
[]
[null,"SERVICIOS DE VALOR AÑADIDO INCLUIDOS EN ESTA HERRAMIENTA",{"$nulls":3},"REVISAR LOS SERVICIOS EXISTENTES",null,"NUEVOS SERVICIOS",null,"PRIORIZACIÓN DE LOS SERVICIOS DE VALOR AÑADIDO DEFINIDOS",{"$nulls":4},"ACCIÓN"]
[null,"Principal categoría de servicios","Sub-categoría","Posibles servicios de valor añadido de la gestión de parques","Propuesta de valor para las empresas arrendatarias y el parque industrial","¿Se presta este servicio en su parque?","Comentarios sobre los servicios existentes / situación","¿Es un posible nuevo servicio para su parque?","Defina un nuevo servicio de valor añadido para su parque industrial","¿Cuál es el ALCANCE del servicio?","¿Cuán BENEFICIOSO puede ser el servicio?","¿Le INTERESA la gestión de parques?"," ¿Le INTERESA las empresas arrendatarias?","PUNTUACIÓN de Priorización\n(Fórmula)","¿Seleccionaría un servicio para una acción a corto plazo?","Comentarios"]
[null,"Soporte Empresarial","Desarrollo empresarial y marketing","Ayudar con la contratación de nuevas empresas en el parque que sean sinérgicas y aporten valor añadido a las empresas inquilinas existentes.","• Enfoque coherente y coordinado para atraer empresas sinérgicas que apoyen a las empresas inquilinas existentes.","Por favor seleccionar",null,"Por favor seleccionar",null,"Por favor seleccionar","Por favor seleccionar","Por favor seleccionar","Por favor seleccionar",{"$f":"(COUNTIF(J12:M12,\"High\")*3)+(COUNTIF(J12:M12,\"Medium\")*2)+(COUNTIF(J12:M12,\"Low\")*1)+(COUNTIF(J12:M12,\"To be confirmed\")*1.5)","v":0},"Por favor seleccionar"]
[null,"Soporte Empresarial","Desarrollo empresarial y marketing","Proporcionar servicios de vivero de empresas, centrándose en el desarrollo de las PYME.","• Atraer nuevas empresas al parque industrial.\n• Creación de empleo y desarrollo de las PYME.","Por favor seleccionar",null,"Por favor seleccionar",null,"Por favor seleccionar","Por favor seleccionar","Por favor seleccionar","Por favor seleccionar",0,"Por favor seleccionar"]
[null,"Soporte Empresarial","Desarrollo empresarial y marketing","Coordinar estudios de evaluación de mercados de interés común para las empresas arrendatarias (por ejemplo, acceso a mercados «verdes»).","• Servicios compartidos, por ende, menores costos para las empresas arrendatarias.","Por favor seleccionar",null,"Por favor seleccionar",null,"Por favor seleccionar","Por favor seleccionar","Por favor seleccionar","Por favor seleccionar",0,"Por favor seleccionar"]
[null,"Soporte Empresarial","Desarrollo empresarial y marketing","Coordinar los esfuerzos de los medios de comunicación y la publicidad de las empresas arrendatarias.","• Servicios compartidos, por ende, menores costos para las empresas arrendatarias.","Por favor seleccionar",null,"Por favor seleccionar",null,"Por favor seleccionar","Por favor seleccionar","Por favor seleccionar","Por favor seleccionar",0,"Por favor seleccionar"]
[null,"Soporte Empresarial","Desarrollo empresarial y marketing","Proporcionar un centro comercial dentro del parque industrial.","• Todos los trabajadores de las empresas arrendatarias tienen fácil acceso a las instalaciones comerciales\n• El parque industrial resulta más atractivo para los trabajadores cualificados","Por favor seleccionar",null,"Por favor seleccionar",null,"Por favor seleccionar","Por favor seleccionar","Por favor seleccionar","Por favor seleccionar",0,"Por favor seleccionar"]
[null,"Soporte Empresarial","Autoridades públicas","Apoyar a las empresas arrendatarias en sus trámites con las autoridades (por ejemplo, permisos de explotación, licencias comerciales).","• El trato con las autoridades puede ser un proceso complejo y lento para las empresas arrendatarias.\n• Mayor capacidad y eficacia de las empresas arrendatarias para obtener los permisos, licencias, etc. necesarios.","Por favor seleccionar",null,"Por favor seleccionar",null,"Por favor seleccionar","Por favor seleccionar","Por favor seleccionar","Por favor seleccionar",0,"Por favor seleccionar"]
[null,"Soporte Empresarial","Finanza y banca","Ayudar a las empresas arrendatarias a encontrar y obtener financiación y subvenciones.","• Las empresas arrendatarias tienen un acceso más fácil y un mejor conocimiento de la financiación y las subvenciones disponibles.","Por favor seleccionar",null,"Por favor seleccionar",null,"Por favor seleccionar","Por favor seleccionar","Por favor seleccionar","Por favor seleccionar",0,"Por favor seleccionar"]
[null,"Soporte Empresarial","Finanza y banca","Proporcionar instalaciones bancarias dentro de los polígonos industriales.","• Todos los trabajadores de las empresas arrendatarias tienen fácil acceso a los servicios bancarios\n•  El parque industrial resulta más atractivo para los trabajadores cualificados","Por favor seleccionar",null,"Por favor seleccionar",null,"Por favor seleccionar","Por favor seleccionar","Por favor seleccionar","Por favor seleccionar",0,"Por favor seleccionar"]
[null,"Soporte Empresarial","Adquisiciones","Facilitar la compra conjunta por parte de la industria de materias primas y de transformación.","• Las empresas arrendatarias pagan un precio más bajo por las materias primas debido al mayor volumen de compras de todas las empresas juntas.","Por favor seleccionar",null,"Por favor seleccionar",null,"Por favor seleccionar","Por favor seleccionar","Por favor seleccionar","Por favor seleccionar",0,"Por favor seleccionar"]
[null,"Soporte Empresarial","Investigación y Desarrollo (I+D)","Coordinar el compromiso de las empresas arrendatarias con las instituciones de investigación y desarrollo.","• Las empresas arrendatarias tienen un acceso más fácil a las instituciones de IyD, lo que beneficia a sus innovaciones de productos y procesos y al desarrollo estratégico de sus negocios.","Por favor seleccionar",null,"Por favor seleccionar",null,"Por favor seleccionar","Por favor seleccionar","Por favor seleccionar","Por favor seleccionar",0,"Por favor seleccionar"]
[null,"Colaboración","Comunidad","Facilitar programas comunitarios en nombre del parque industrial y las empresas arrendatarias.","• Reducción de la presión sobre las empresas arrendatarias para que lleven a cabo sus propios programas comunitarios.\n•  Una buena y sólida relación con la comunidad beneficia estratégica y operativamente al polígono industrial y a las empresas arrendatarias","Por favor seleccionar",null,"Por favor seleccionar",null,"Por favor seleccionar","Por favor seleccionar","Por favor seleccionar","Por favor seleccionar",0,"Por favor seleccionar"]
[null,"Colaboración","Comunidad","Facilitar el compromiso con la comunidad en nombre de las empresas arrendatarias.","Coordinar estudios de evaluación de mercados de interés común para las empresas arrendatarias (por ejemplo, acceso a mercados «verdes»).","Por favor seleccionar",null,"Por favor seleccionar",null,"Por favor seleccionar","Por favor seleccionar","Por favor seleccionar","Por favor seleccionar",0,"Por favor seleccionar"]
[null,"Colaboración","Comunidad","Apoyar a los municipios en el desarrollo de emplazamientos empresariales comunales e intercomunales.","• Una buena y sólida relación con el municipio y la comunidad local supone un beneficio estratégico y operativo para el parque industrial y las empresas arrendatarias\n• Las empresas comunales pueden apoyar a las empresas arrendatarias (por ejemplo, transformación o suministro de productos semiacabados)","Por favor seleccionar",null,"Por favor seleccionar",null,"Por favor seleccionar","Por favor seleccionar","Por favor seleccionar","Por favor seleccionar",0,"Por favor seleccionar"]
[null,"Colaboración","Comités de empresas arrendatarias","Establecer y facilitar reuniones periódicas del comité mixto de empresas para abordar y encontrar soluciones a los retos y oportunidades comunes a los que se enfrentan el parque industrial y las empresas.","• En lugar de que cada empresa intente resolver sus propios retos, estos comités facilitan la colaboración de las empresas arrendatarias para compartir experiencias, encontrar soluciones conjuntas y reproducir las buenas prácticas ya aplicadas por algunas empresas.","Por favor seleccionar",null,"Por favor seleccionar",null,"Por favor seleccionar","Por favor seleccionar","Por favor seleccionar","Por favor seleccionar",0,"Por favor seleccionar"]
[null,"Medio Ambiente","Energía","Coordinar un programa de apoyo para mejorar la eficiencia energética de las empresas inquilinas, especialmente para el 50% de las empresas que más energía consumen en el parque.","• Reducción del consumo de energía y, por tanto, de los costos operativos de las empresas arrendatarias.\n• Las empresas arrendatarias tienen un acceso más fácil al asesoramiento técnico, a los recursos materiales y a una red profesional de expertos en eficiencia energética.","Por favor seleccionar",null,"Por favor seleccionar",null,"Por favor seleccionar","Por favor seleccionar","Por favor seleccionar","Por favor seleccionar",0,"Por favor seleccionar"]
[null,"Medio Ambiente","Energía","Proporcionar infraestructuras energéticas centralizadas y servicios públicos de interés y valor común para las empresas arrendatarias, como cogeneración compartida, sistemas de calderas multiempresa, recuperación de calor residual.","• Reducción de la necesidad de que las empresas arrendatarias dispongan in situ de sus infraestructuras y equipos de suministro energético, con la consiguiente reducción de costos.\n• Servicios compartidos y, por tanto, menores costos para las empresas arrendatarias","Por favor seleccionar",null,"Por favor seleccionar",null,"Por favor seleccionar","Por favor seleccionar","Por favor seleccionar","Por favor seleccionar",0,"Por favor seleccionar"]
[null,"Medio Ambiente","Energía","Coordinar un plan para reaccionar ante posibles impactos negativos debidos a los riesgos del cambio climático (olas de calor y sequías, tormentas e inundaciones).","• Enfoque coherente y coordinado para reaccionar ante los riesgos del cambio climático que afectan al parque industrial y a las empresas arrendatarias.","Por favor seleccionar",null,"Por favor seleccionar",null,"Por favor seleccionar","Por favor seleccionar","Por favor seleccionar","Por favor seleccionar",0,"Por favor seleccionar"]
[null,"Medio Ambiente","Eficacia de los recursos","Ayudar a las empresas arrendatarias a acceder a proveedores de servicios que puedan identificar y aplicar prácticas de producción más limpia y eficiente en el uso de los recursos, así como tecnologías limpias.","• Mayor eficiencia de los recursos y, por tanto, menores costos operativos para las empresas arrendatarias.\n• Las empresas arrendatarias tienen un acceso más fácil al asesoramiento técnico, a los recursos materiales y a una red profesional de expertos en producción limpia y uso eficiente de los recursos.","Por favor seleccionar",null,"Por favor seleccionar",null,"Por favor seleccionar","Por favor seleccionar","Por favor seleccionar","Por favor seleccionar",0,"Por favor seleccionar"]
[null,"Medio Ambiente","Eficacia de los recursos","Facilitar el compromiso entre las empresas arrendatarias y las partes interesadas (municipio local, proveedores de servicios, empresas externas al parque) para identificar y desarrollar sinergias industriales (por ejemplo, cadena de suministro, utilidad, subproducto, servicio y sinergias urbano-industriales).","• Las empresas arrendatarias tienen un acceso más fácil al asesoramiento técnico, a los recursos materiales y a una red profesional de expertos en el desarrollo de sinergias industriales.\n• Los beneficios de las sinergias industriales son múltiples: mayor eficiencia de los recursos, costos compartidos y reducidos, seguridad del suministro de materiales, etc.","Por favor seleccionar",null,"Por favor seleccionar",null,"Por favor seleccionar","Por favor seleccionar","Por favor seleccionar","Por favor seleccionar",0,"Por favor seleccionar"]
[null,"Medio Ambiente","Residuos","Coordinar un programa de apoyo al parque industrial para aumentar la reutilización y el reciclaje de residuos a corto y medio plazo.","• Las empresas arrendatarias tienen más fácil acceso a asesoramiento técnico, material de consulta y una red profesional con expertos en gestión y reutilización de residuos.","Por favor seleccionar",null,"Por favor seleccionar",null,"Por favor seleccionar","Por favor seleccionar","Por favor seleccionar","Por favor seleccionar",0,"Por favor seleccionar"]
[null,"Medio Ambiente","Residuos","Coordinar/proporcionar servicios e instalaciones centralizados de recojo, almacenamiento, reciclado y eliminación de residuos.","• Mayor eficacia en el recojo, almacenamiento, reciclaje y eliminación de residuos, con la consiguiente reducción de costos para las empresas arrendatarias.\n• Mejor cumplimiento legal de las empresas arrendatarias.\n• Mejora de la reputación del parque industrial (y de sus empresas arrendatarias) ante la comunidad local y las autoridades reguladoras.","Por favor seleccionar",null,"Por favor seleccionar",null,"Por favor seleccionar","Por favor seleccionar","Por favor seleccionar","Por favor seleccionar",0,"Por favor seleccionar"]
[null,"Medio Ambiente","Residuos","Colaborar con empresas de gestión de residuos y reciclaje para ofrecer servicios de valor añadido a las empresas del parque y a los inquilinos.","Como se mencionó anteriormente.","Por favor seleccionar",null,"Por favor seleccionar",null,"Por favor seleccionar","Por favor seleccionar","Por favor seleccionar","Por favor seleccionar",0,"Por favor seleccionar"]
[null,"Medio Ambiente","Agua","Coordinar un programa de apoyo al parque industrial para aumentar la reutilización del agua a corto y medio plazo.","• Menor consumo de agua y, por tanto, menores costos operativos para las empresas arrendatarias.\n• Reducción de los riesgos de restricciones de agua para las empresas arrendatarias.","Por favor seleccionar",null,"Por favor seleccionar",null,"Por favor seleccionar","Por favor seleccionar","Por favor seleccionar","Por favor seleccionar",0,"Por favor seleccionar"]
[null,"Medio Ambiente","Agua","Proporcionar infraestructuras hídricas centralizadas y servicios públicos de interés y valor comunes a las empresas arrendatarias, incluidos el suministro, el tratamiento y el reciclado del agua.","• Reducción de la necesidad de que las empresas arrendatarias tengan sus infraestructuras y equipos de suministro de agua in situ, con la consiguiente reducción de costos.\n• Servicios compartidos y, por tanto, menores costos para las empresas arrendatarias","Por favor seleccionar",null,"Por favor seleccionar",null,"Por favor seleccionar","Por favor seleccionar","Por favor seleccionar","Por favor seleccionar",0,"Por favor seleccionar"]
[null,"Infraestructura y Servicios públicos","Residuos","Coordinar estudios de evaluación de mercados de interés común para las empresas arrendatarias (por ejemplo, acceso a mercados «verdes»).","• Mayor facilidad para que las empresas arrendatarias creen y exploten edificios «verdes».\n• Las empresas arrendatarias reducen los costos de energía y agua de sus edificios.","Por favor seleccionar",null,"Por favor seleccionar",null,"Por favor seleccionar","Por favor seleccionar","Por favor seleccionar","Por favor seleccionar",0,"Por favor seleccionar"]
[null,"Infraestructura y Servicios públicos","Securidad","Operar el sistema común de control de seguridad y respuesta para el parque industrial.","• Costos compartidos y, por tanto, menores para las empresas arrendatarias.\n• Mayor seguridad en el parque industrial y, por tanto, mejor reputación de este.","Por favor seleccionar",null,"Por favor seleccionar",null,"Por favor seleccionar","Por favor seleccionar","Por favor seleccionar","Por favor seleccionar",0,"Por favor seleccionar"]
[null,"Infraestructura y Servicios públicos","Transportación","Facilitar sistemas de transporte compartido entre las empresas arrendatarias.","• Sistema compartido y, por tanto, menores costos de transporte para las empresas arrendatarias.","Por favor seleccionar",null,"Por favor seleccionar",null,"Por favor seleccionar","Por favor seleccionar","Por favor seleccionar","Por favor seleccionar",0,"Por favor seleccionar"]
[null,"Infraestructura y Servicios públicos","Transportación","Proporcionar instalaciones y servicios logísticos y de almacenamiento centralizados.","• Menor necesidad de espacio de almacenamiento en las empresas arrendatarias y, por tanto, más espacio disponible para las actividades de producción.\n• Instalaciones y servicios compartidos y, por tanto, menores costos logísticos para las empresas arrendatarias","Por favor seleccionar",null,"Por favor seleccionar",null,"Por favor seleccionar","Por favor seleccionar","Por favor seleccionar","Por favor seleccionar",0,"Por favor seleccionar"]
[null,"Infraestructura y Servicios públicos","Transportación","Prestar servicios comunes de mantenimiento de vehículos en el parque industrial.","• Cada empresa arrendataria no necesita gestionar su propio servicio de mantenimiento de vehículos (las empresas arrendatarias pueden centrarse más en su actividad principal).\n• Servicio e instalaciones compartidos y, por tanto, menores costos de mantenimiento para las empresas arrendatarias.","Por favor seleccionar",null,"Por favor seleccionar",null,"Por favor seleccionar","Por favor seleccionar","Por favor seleccionar","Por favor seleccionar",0,"Por favor seleccionar"]
[null,"Gestión","Vigilancia y sistemas","Facilitar un sistema de gestión (de calidad, medioambiental y social) para el parque industrial, alineado con las normas internacionales.","• Enfoque coherente y coordinado del sistema de gestión en el parque industrial.\n• Menor presión sobre las empresas arrendatarias para que apliquen sus sistemas de gestión.","Por favor seleccionar",null,"Por favor seleccionar",null,"Por favor seleccionar","Por favor seleccionar","Por favor seleccionar","Por favor seleccionar",0,"Por favor seleccionar"]
[null,"Gestión","Vigilancia y sistemas","Establecer y poner en funcionamiento un sistema de supervisión a nivel de parque, que incluya los resultados medioambientales, sociales y económicos y los factores de riesgo críticos.","• Enfoque coherente y coordinado del sistema de vigilancia en el parque industrial.\n• Reducción de la presión sobre las empresas arrendatarias para que hagan funcionar sus sistemas de vigilancia.","Por favor seleccionar",null,"Por favor seleccionar",null,"Por favor seleccionar","Por favor seleccionar","Por favor seleccionar","Por favor seleccionar",0,"Por favor seleccionar"]
[null,"Gestión","Vigilancia y sistemas","Poner en marcha un sistema de gestión y seguimiento de las quejas recibidas por el parque industrial.","• Enfoque coherente y coordinado para tratar las reclamaciones en el parque industrial.\n• Reducción de la presión sobre las empresas arrendatarias para que gestionen su propio sistema de gestión de reclamaciones.","Por favor seleccionar",null,"Por favor seleccionar",null,"Por favor seleccionar","Por favor seleccionar","Por favor seleccionar","Por favor seleccionar",0,"Por favor seleccionar"]
[null,"Personas","Salud","Proporcionar instalaciones y servicios médicos centralizados a las empresas arrendatarias.","• Todos los trabajadores de las empresas arrendatarias tienen fácil acceso a los servicios médicos.","Por favor seleccionar",null,"Por favor seleccionar",null,"Por favor seleccionar","Por favor seleccionar","Por favor seleccionar","Por favor seleccionar",0,"Por favor seleccionar"]
[null,"Personas","Trabajadores y competencias","Facilitar la asignación flexible de empleados entre las empresas inquilinas.","• Mayor utilización de los empleados de las empresas arrendatarias.\n• Empleados compartidos entre varias empresas y, por tanto, reducción de costos y/o aumento de ingresos.","Por favor seleccionar",null,"Por favor seleccionar",null,"Por favor seleccionar","Por favor seleccionar","Por favor seleccionar","Por favor seleccionar",0,"Por favor seleccionar"]
[null,"Personas","Trabajadores y competencias","Organizar capacitaciones sobre temas de interés común para las empresas arrendatarias.","• Las empresas arrendatarias tienen un acceso más fácil a capacitaciones.\n• Las empresas arrendatarias no tienen que organizar ellas mismas la capacitación, lo que supone un ahorro de tiempo y dinero.","Por favor seleccionar",null,"Por favor seleccionar",null,"Por favor seleccionar","Por favor seleccionar","Por favor seleccionar","Por favor seleccionar",0,"Por favor seleccionar"]
[null,"Personas","Trabajadores y competencias","Proporcionar un servicio de guardería para apoyar a los empleados de las empresas arrendatarias del parque industrial.","• Mayor capacidad de las empresas arrendatarias para mantener y apoyar a los empleados con niños pequeños.\n• Eficacia y comodidad para los empleados a la hora de dejar y recoger a sus hijos antes y después del trabajo.","Por favor seleccionar",null,"Por favor seleccionar",null,"Por favor seleccionar","Por favor seleccionar","Por favor seleccionar","Por favor seleccionar",0,"Por favor seleccionar"]
[null,"Otro","Otro",null,null,"Por favor seleccionar",null,"Por favor seleccionar",null,"Por favor seleccionar","Por favor seleccionar","Por favor seleccionar","Por favor seleccionar",0,"Por favor seleccionar"]
[null,"Otro","Otro",null,null,"Por favor seleccionar",null,"Por favor seleccionar",null,"Por favor seleccionar","Por favor seleccionar","Por favor seleccionar","Por favor seleccionar",0,"Por favor seleccionar"]
[null,"Otro","Otro",null,null,"Por favor seleccionar",null,"Por favor seleccionar",null,"Por favor seleccionar","Por favor seleccionar","Por favor seleccionar","Por favor seleccionar",0,"Por favor seleccionar"]

{"sheet":"3. Repaso de servicios 4.0(opc)","index":4,"n_rows":43,"n_cols":16,"rows_kept":43,"merged":[[1,1,3,3],[1,6,1,8],[3,6,3,8],[6,1,6,12],[9,1,9,4],[9,5,9,6],[9,7,9,8],[9,9,9,12],[9,14,9,15]]}
[null,"Herramienta de servicios de gestión de PEI de la ONUDI (V1)"]
[null,"OPCIONAL: REVISAR Y PRIORIZAR LOS SERVICIOS DE LA INDUSTRIA 4.0",{"$nulls":3},"Nombre del parque industrial:","Ingresar el nombre del parque industrial"]
[{"$nulls":5},"Periodo de evaluación:",{"$f":"'1. Retos y oportunidades'!G3","v":"Ingresar fecha"}]
[{"$nulls":5},"Nombre de los asesores:",{"$f":"'1. Retos y oportunidades'!G4","v":"Ingresar nombre"}]
[]
[]
[null,"Instrucciones:  Este paso guía a la administración del parque y a las empresas arrendatarias en la revisión de una larga lista de servicios categorizados de Industria 4.0 y en la definición de servicios específicos para el parque industrial. Los servicios de la Industria 4.0 más factibles, con mayores beneficios previstos e interés por parte de la dirección del parque/empresas se priorizan y se recomiendan para acciones a corto plazo."]
[]
[]
[null,"SERVICIOS DE INDUSTRIA 4.0 INCLUIDOS EN ESTA HERRAMIENTA",{"$nulls":3},"REVISAR LOS SERVICIOS EXISTENTES",null,"NUEVOS SERVICIOS",null,"PRIORIZACIÓN DE LOS SERVICIOS DE VALOR AÑADIDO",{"$nulls":4},"ACCIÓN"]
[null,"Principal categoría de servicios","Sub-categoría","Potenciales servicios de Industria 4.0 de gestión de parques","Propuesta de valor para las empresas arrendatarias y el parque industrial","¿Se presta este servicio en su parque?","Comentarios sobre los servicios existentes / situación","¿Este nuevo servicio es viable para su parque?","Defina un nuevo servicio de Industria 4.0 para su parque industrial","¿Cuál es el ALCANCE del servicio?","¿Cuán BENEFICIOSO puede ser el servicio?","INTERÉS en la gestión de parques","INTERÉS en las empresas arrendatarias","PUNTUACIÓN de Priorización\n(Fórmula)","Seleccionar un servicio para una acción a corto plazo","Comentarios"]
[null,"Soporte Empresarial","Centros de servicios, redes y agrupaciones","Instaurar un centro de servicios para la fabricación in situ de piezas de repuesto, piezas de ingeniería, herramientas o modelos de maqueta con tecnología de fabricación aditiva.","• Ambiental: proporcionar una mayor resiliencia en la cadena de suministro, evitando el transporte de piezas desde los proveedores hasta el parque industrial.\n• Económico: en lugar de que cada empresa intente resolver su propio suministro de repuestos, existe la oportunidad de colaboración entre las empresas arrendatarias para compartir el centro de servicios de tecnología de fabricación aditiva (AM). Los fabricantes pueden reducir la necesidad de almacenamiento en favor de la producción bajo demanda de componentes cerca de sus propias instalaciones.","Por favor seleccionar",null,"Por favor seleccionar",null,"Por favor seleccionar","Por favor seleccionar","Por favor seleccionar","Por favor seleccionar",{"$f":"(COUNTIF(J12:M12,\"High\")*3)+(COUNTIF(J12:M12,\"Medium\")*2)+(COUNTIF(J12:M12,\"Low\")*1)+(COUNTIF(J12:M12,\"To be confirmed\")*1.5)","v":0},"Por favor seleccionar"]
[null,"Soporte Empresarial","Centros de servicios, redes y agrupaciones","Establecer redes de Industria 4.0, por ejemplo, agrupaciones de innovación","• Provisión de una plataforma para el intercambio de información sobre temas relacionados con la Industria 4.0.\n• Dado que las tecnologías y aplicaciones de la Industria 4.0 son un campo de rápido desarrollo, el intercambio de información entre las empresas arrendatarias y actores externos, como universidades, instituciones de investigación y escuelas técnicas, es esencial para mantenerse al día con la innovación actual.","Por favor seleccionar",null,"Por favor seleccionar",null,"Por favor seleccionar","Por favor seleccionar","Por favor seleccionar","Por favor seleccionar",0,"Por favor seleccionar"]
[null,"Soporte Empresarial","Centros de servicios, redes y agrupaciones","Establecer un centro de aplicaciones de la Industria 4.0 para la demostración de componentes en condiciones de entorno de producción simulado para su comercialización y como banco de pruebas que proporcione una simulación de las condiciones reales.","• Pruebas de simulación de equipos y soluciones de Industria 4.0 en condiciones reales.\n• Las empresas que venden equipos y software relacionados con la Industria 4.0; las empresas que desean implementar soluciones de Industria 4.0 y desean probar el sistema en condiciones reales ahorran tiempo y dinero antes de entrar en el mercado o realizar la instalación.","Por favor seleccionar",null,"Por favor seleccionar",null,"Por favor seleccionar","Por favor seleccionar","Por favor seleccionar","Por favor seleccionar",0,"Por favor seleccionar"]
[null,"Medio Ambiente","Energía","Proporcionar servicios de red de energía inteligente a parques industriales y empresas inquilinas\n• Red de comunicaciones especializada que mueve energía y datos para equilibrar la oferta y la demanda y mantener un servicio fiable.\n• Monitoreo en tiempo real del suministro energético para la detección precoz de variables atípicas.","• Económico: Mejora de la ventaja competitiva y aumento de oportunidades de inversión.\n• Ambiental: Reducción del consumo de energía y emisiones de gases de efecto invernadero, fomento del uso de energías renovables al disminuir los problemas potenciales de producción intermitente de electricidad.\n• Social: Creación de empleos, por ejemplo, en la producción de energía renovable.","Por favor seleccionar",null,"Por favor seleccionar",null,"Por favor seleccionar","Por favor seleccionar","Por favor seleccionar","Por favor seleccionar",0,"Por favor seleccionar"]
[null,"Medio Ambiente","Energía","Intercambio de calor residual; diagnóstico de IA basado en IC para el intercambio de calor residual entre plantas o empresas basado en datos de temperatura y entalpía.","• Económico y ambiental: Servicios en la nube para la reducción del calor residual no utilizado, lo que lleva a una disminución de la generación de calor necesaria.\n• Las empresas obtienen información en tiempo real sobre la posible utilización del calor residual, lo que resulta en su intercambio o transformación en calor para otros fines (heat-to-X).","Por favor seleccionar",null,"Por favor seleccionar",null,"Por favor seleccionar","Por favor seleccionar","Por favor seleccionar","Por favor seleccionar",0,"Por favor seleccionar"]
[null,"Medio Ambiente","Residuos","Prestación de servicios de gestión inteligente de residuos sólidos a empresas de parques industriales e inquilinos, incluidos sensores de cubos de basura con compactadores alimentados por energía solar, planificación de rutas basada en Sistemas de Información Geográfica (SIG), reciclaje y recuperación automatizados de materiales y conversión de residuos en energía.","• Económico: Ambiente empresarial atractivo.\n• Ambiental: Reducción del espacio utilizado para vertederos y disminución de las emisiones de gases de efecto invernadero.\n• Social: Medio ambiente más limpio y mayor salud.","Por favor seleccionar",null,"Por favor seleccionar",null,"Por favor seleccionar","Por favor seleccionar","Por favor seleccionar","Por favor seleccionar",0,"Por favor seleccionar"]
[null,"Medio Ambiente","Agua","Proporcionar servicios de red de agua inteligente a parques industriales y empresas arrendatarias:\n• Red de infraestructuras existentes, medición precisa y transmisión de datos, sensores en toda la red para detectar contaminantes y fugas, conocimiento de la situación, captación de agua, por ejemplo, agua de lluvia, aguas residuales recicladas y reutilizadas, energía cinética recapturada para la generación de electricidad, entre otros.","• Económico: Reducción de los costos operativos.\n• Ambiental: Eliminación de pérdidas innecesarias y optimización del consumo de agua.\n• Social: Mejora de la calidad y fiabilidad del suministro de agua.","Por favor seleccionar",null,"Por favor seleccionar",null,"Por favor seleccionar","Por favor seleccionar","Por favor seleccionar","Por favor seleccionar",0,"Por favor seleccionar"]
[null,"Infraestructura y Servicios públicos","Edificios","Prestación de servicios de edificios inteligentes a parques industriales y empresas arrendatarias\n• Aplicación de sensores, contadores, sistemas y software para supervisar y controlar una amplia gama de funciones del edificio, por ejemplo, iluminación, energía, agua, calefacción, ventilación y aire acondicionado (HVAC), comunicaciones, supervisión por vídeo, detección de intrusos y seguridad contra incendios.","• Económico: Reducción de las facturas de servicios públicos, disminución del costo y frecuencia de las reparaciones, aumento de la tasa de retorno de las inversiones.\n• Ambiental: Reducción del consumo de energía y emisiones de gases de efecto invernadero, disminución del desperdicio de agua y posibilidad de producción de energía renovable.\n• Social: Aumento de la satisfacción de los trabajadores, mejora de los niveles de comodidad para los ocupantes, mayor seguridad, mejoras en la salud y mayor conveniencia.","Por favor seleccionar",null,"Por favor seleccionar",null,"Por favor seleccionar","Por favor seleccionar","Por favor seleccionar","Por favor seleccionar",0,"Por favor seleccionar"]
[null,"Infraestructura y Servicios públicos","Seguridad","Uso de la identificación inteligente no sólo para la entrada al parque, sino también para el pago por uso, como comida, bebidas, compras; uso para el acceso a zonas restringidas; uso para el recuento de personas en caso de evacuación de edificios individuales.","• Social: Simplificación del proceso de pago, por ejemplo, en un patio de comidas; identificación en tiempo real de personas desaparecidas.\n• Económico: Proceso de pedido a cobro eficiente para servicios de personal.","Por favor seleccionar",null,"Por favor seleccionar",null,"Por favor seleccionar","Por favor seleccionar","Por favor seleccionar","Por favor seleccionar",0,"Por favor seleccionar"]
[null,"Infraestructura y Servicios públicos","Seguridad","Prestación de servicios de seguridad inteligente y control de accesos para un parque industrial\n• Datos en tiempo real de las personas que acceden al parque mediante el control de tarjetas de acceso o el registro de visitantes. ","• En caso de emergencia, estará disponible el número total de personas en el parque.\n• Seguridad y protección de los empleados y visitantes del parque.","Por favor seleccionar",null,"Por favor seleccionar",null,"Por favor seleccionar","Por favor seleccionar","Por favor seleccionar","Por favor seleccionar",0,"Por favor seleccionar"]
[null,"Infraestructura y Servicios públicos","Transporte","Proporcionar servicios de transporte inteligente a las empresas del parque industrial y sus inquilinos\n• Recopilación en tiempo real de movimientos de tráfico, combinados con datos de carreteras y semáforos, y aplicación de análisis para su optimización","• Económico: Mejora de los presupuestos de transporte.\n• Ambiental: Reducción de la contaminación y las emisiones de gases de efecto invernadero.\n• Social: Reducción de la congestión del tráfico y los tiempos de viaje.","Por favor seleccionar",null,"Por favor seleccionar",null,"Por favor seleccionar","Por favor seleccionar","Por favor seleccionar","Por favor seleccionar",0,"Por favor seleccionar"]
[null,"Infraestructura y Servicios públicos","Transporte","Gestión de franjas horarias para camiones: Reducción del tiempo de espera de los camiones, de la zona de espera de los camiones, de la seguridad y del personal de la puerta mediante la determinación de franjas horarias para la entrada y carga/descarga de camiones.","• Gestión: Mejora de la seguridad en el parque industrial.\n• Económico: Reducción de costos de seguridad, predicción de la llegada de camiones a la estación de carga para una mejor planificación del trabajo.","Por favor seleccionar",null,"Por favor seleccionar",null,"Por favor seleccionar","Por favor seleccionar","Por favor seleccionar","Por favor seleccionar",0,"Por favor seleccionar"]
[null,"Infraestructura y Servicios públicos","Transporte","Proporcionar el seguimiento de la ubicación y el enrutamiento de herramientas, contenedores, personas, entregas y otros vehículos a través de SPC con conexión a GPS e IC.","• Económico: Reducción del tiempo de búsqueda de herramientas, contenedores o vehículos, monitoreo del movimiento de personas.\n","Por favor seleccionar",null,"Por favor seleccionar",null,"Por favor seleccionar","Por favor seleccionar","Por favor seleccionar","Por favor seleccionar",0,"Por favor seleccionar"]
[null,"Infraestructura y Servicios públicos","Infraestructura","Mejora de la gestión de activos mediante un gemelo digital para infraestructuras con documentación y modelos digitales (por ejemplo, calles, tuberías y conductos, centrales eléctricas, EDAR, eliminación de residuos), diagnósticos de IA para mantenimiento predictivo, control avanzado de procesos, funcionamiento basado en la demanda, optimización de procesos en tiempo real. ","• Económico: Reducción de los costos de operación y mantenimiento de la infraestructura (por ejemplo, electricidad, tratamiento de aguas residuales).\n• Ambiental: Mejora de los procesos de infraestructura, como la generación de electricidad y la planta de tratamiento de aguas residuales.","Por favor seleccionar",null,"Por favor seleccionar",null,"Por favor seleccionar","Por favor seleccionar","Por favor seleccionar","Por favor seleccionar",0,"Por favor seleccionar"]
[null,"Infraestructura y Servicios públicos","Infraestructura","Proporcionar infraestructura de Industria 4.0 como Cloud (PaaS, SaaS, IaaS, alojamiento local o contrato conjunto a nivel de parque con el proveedor), IC (por ejemplo, 5G o LoRaWAN o Comunicación NB-IC, implementación de parkwide, infraestructura para el movimiento de vehículos autónomos.)","• Económico: Las soluciones de Industria 4.0 requieren una infraestructura adecuada que puede ser proporcionada por un proveedor nacional o mediante una red privada de Internet. El tipo óptimo de infraestructura depende de factores como el volumen de datos y la calidad de la fuente.","Por favor seleccionar",null,"Por favor seleccionar",null,"Por favor seleccionar","Por favor seleccionar","Por favor seleccionar","Por favor seleccionar",0,"Por favor seleccionar"]
[null,"Infraestructura y Servicios públicos","Infraestructura","Proporcionar servicios de telecomunicaciones e Internet de alta velocidad a las empresas inquilinas y a los edificios conectados en red.","• Servicios compartidos y, por lo tanto, costos más bajos para las empresas arrendatarias.\n• Las empresas arrendatarias pueden implementar soluciones de Industria 4.0.","Por favor seleccionar",null,"Por favor seleccionar",null,"Por favor seleccionar","Por favor seleccionar","Por favor seleccionar","Por favor seleccionar",0,"Por favor seleccionar"]
[null,"Infraestructura y Servicios públicos","Mantenimiento","Mantenimiento a distancia de infraestructuras (por ejemplo, servicios públicos, suministro eléctrico de alta tensión/media tensión/sistemas de red eléctrica, EDAR, pretratamiento de aguas residuales) mediante asistencia basada en RA.","• Económico: Mejora de la calidad del mantenimiento y reparación, reducción del tiempo de ejecución y los costos de transporte para el mantenimiento y reparación.\n• Ambiental: Reducción del transporte y las emisiones asociadas.","Por favor seleccionar",null,"Por favor seleccionar",null,"Por favor seleccionar","Por favor seleccionar","Por favor seleccionar","Por favor seleccionar",0,"Por favor seleccionar"]
[null,"Infraestructura y Servicios públicos","Mantenimiento","Utilizar robots para limpiar las calles, cortar el césped y otros trabajos en superficies.","• Social: Los trabajadores con habilidades básicas pueden recibir capacitación para trabajos más desafiantes, como controlar el trabajo de robots, realizar reparaciones o preparar rutas.\n• Económico: Reducción de costos; los robots pueden realizar el servicio las 24 horas del día, los 7 días de la semana, interrumpidos solo por recargas automáticas.","Por favor seleccionar",null,"Por favor seleccionar",null,"Por favor seleccionar","Por favor seleccionar","Por favor seleccionar","Por favor seleccionar",0,"Por favor seleccionar"]
[null,"Gestión","Comunicaciones","Organizar reuniones periódicas y reuniones ad hoc a distancia.","• Económico: Reducción de reuniones presenciales y mejor visualización, por ejemplo, con presentación de diapositivas en lugar de llamadas telefónicas.\n• Económico: Se brinda apoyo a la informatización de las empresas arrendatarias.","Por favor seleccionar",null,"Por favor seleccionar",null,"Por favor seleccionar","Por favor seleccionar","Por favor seleccionar","Por favor seleccionar",0,"Por favor seleccionar"]
[null,"Gestión","Comunicaciones","Comunicación estándar en todo el parque. Evitar diferentes protocolos de comunicación que impidan la comunicación directa entre diferentes objetos del parque, como la comunicación MaM; selección de alternativas admisibles, como LoRaWAN en lugar de 5G.","• Gestión y económico: Proporcionar un estándar para los protocolos de comunicación que tenga validez en todo el parque.","Por favor seleccionar",null,"Por favor seleccionar",null,"Por favor seleccionar","Por favor seleccionar","Por favor seleccionar","Por favor seleccionar",0,"Por favor seleccionar"]
[null,"Gestión","Comunicaciones","Modelo 3D de los activos del parque industrial y las empresas basado en la fotogrametría para apoyar las actividades de marketing y planificación de la gestión del parque y las empresas.","• Visualización de la situación actual y el impacto de nuevos proyectos, lo que reduce el costo de planificación y aumenta la atractividad del parque industrial.","Por favor seleccionar",null,"Por favor seleccionar",null,"Por favor seleccionar","Por favor seleccionar","Por favor seleccionar","Por favor seleccionar",0,"Por favor seleccionar"]
[null,"Gestión","Comunicaciones","Aplicación «App del Parque Industrial» como plataforma de información","• Información general, información actual y mensajes, así como notificaciones enviadas a los dispositivos móviles de los trabajadores y visitantes.\n• Social: Notificaciones automáticas, información de acceso para visitantes, mapa del parque industrial, rutas para camiones, infraestructura social importante como comedores, primeros auxilios, baños, contactos de emergencia, carreteras cerradas, etc.","Por favor seleccionar",null,"Por favor seleccionar",null,"Por favor seleccionar","Por favor seleccionar","Por favor seleccionar","Por favor seleccionar",0,"Por favor seleccionar"]
[null,"Gestión","Big data","Proporcionar aplicaciones de Macrodatos e IA para el análisis de datos clave de las empresas, como EMS- / EnMS ","• Económicos: Servicios en la nube compartidos con IA para la mejora de procesos, optimización energética, mejora del rendimiento medioambiental\n• Medioambiental: Optimización energética, mejora del rendimiento medioambiental mediante aplicación de IA compartida","Por favor seleccionar",null,"Por favor seleccionar",null,"Por favor seleccionar","Por favor seleccionar","Por favor seleccionar","Por favor seleccionar",0,"Por favor seleccionar"]
[null,"Gestión","Monitoreo","Parque de vigilancia y control con drones y robots.","• Gestión, Medioambiental, Social y Económica: Los drones proporcionan información que no está disponible a nivel del suelo o sobre sucesos que ocurren a distancia.\n•  Los drones y robots proporcionan medios adecuados para vigilar el perímetro de los parques, controlar cualquier emisión o impacto medioambiental, el movimiento de camiones y personas u observar cualquier escena de incidente, como incendios o delitos, para apoyar el análisis de la situación y al comandante en el lugar de los hechos.","Por favor seleccionar",null,"Por favor seleccionar",null,"Por favor seleccionar","Por favor seleccionar","Por favor seleccionar","Por favor seleccionar",0,"Por favor seleccionar"]
[null,"Gestión","Monitoreo","Proporcionar servicios de seguimiento inteligente en el parque industrial, incluyendo elementos como la calidad del aire, el ruido, la calidad del agua, el tráfico","• Mayor eficiencia de recursos y costos.\n• Los sistemas precisos de control en tiempo real permiten una mejor gestión y la adopción de medidas correctivas en caso necesario.","Por favor seleccionar",null,"Por favor seleccionar",null,"Por favor seleccionar","Por favor seleccionar","Por favor seleccionar","Por favor seleccionar",0,"Por favor seleccionar"]
[null,"Personas","Salud","Aplicación «App del Parque Industrial» como plataforma de información","• Social: Se pueden prestar Primeros Auxilios a distancia sin que los paramédicos / médicos especialistas en urgencias estén en el lugar; en caso de pandemias Covid-19: el médico puede prestar primeros auxilios sin exponerse al virus si las personas de la empresa estuvieran infectadas","Por favor seleccionar",null,"Por favor seleccionar",null,"Por favor seleccionar","Por favor seleccionar","Por favor seleccionar","Por favor seleccionar",0,"Por favor seleccionar"]
[null,"Personas","Trabajadores y competencias","Crear un centro de formación de Industria 4.0 con una fábrica de formación inteligente ","• Social: Los trabajadores pueden adquirir conocimientos sobre la Industria 4.0 de primera mano y obtener la cualificación correspondiente, lo que a su vez les proporciona una mejor posición en el mercado laboral.\n•  Económicos: Las tecnologías de la Industria 4.0 no son sólo una cuestión técnica, sino que también requieren nuevas competencias y conocimiento. El desarrollo de habilidades y la capacitación son esenciales para este proceso de cambio. La fábrica central de aprendizaje libera a las empresas de la carga de llevar a cabo ellas mismas programas de capacitación individuales.","Por favor seleccionar",null,"Por favor seleccionar",null,"Por favor seleccionar","Por favor seleccionar","Por favor seleccionar","Por favor seleccionar",0,"Por favor seleccionar"]
[null,"Personas","Trabajadores y competencias","Creación de un centro de formación en RV/RA/RM para la formación de procesos, situaciones y diseño de puestos de trabajo específicos, telemantenimiento, telemedicina, escuela de manejo de maquinaria pesada  ","• Económico: RA para trabajadores de mantenimiento con información sensible al contexto (historial de mantenimiento, planos de despiece); maquetas para formación y simulaciones genéricas (por ejemplo, temas de seguridad, educación) utilizadas conjuntamente reduciendo la inversión individual; el acceso inmediato a la información correcta, significa que los empleados pueden realizar un trabajo de mayor calidad en menos tiempo, con menos errores.\n• Social: Los trabajadores pueden obtener calificaciones más altas incluso trabajando en ambientes complejos o peligrosos; la seguridad en el trabajo será mayor.","Por favor seleccionar",null,"Por favor seleccionar",null,"Por favor seleccionar","Por favor seleccionar","Por favor seleccionar","Por favor seleccionar",0,"Por favor seleccionar"]
[null,"Personas","Trabajadores y competencias","«Preparación para la evaluación de la Industria 4.0» y consultoría de modelos de negocios, prestación de consultoría para introducir conceptos de parques industriales inteligentes en las empresas.","•Económico: desarrollo de una hoja de ruta adecuada y específica para la digitalización de la empresa residente respectiva. ","Por favor seleccionar",null,"Por favor seleccionar",null,"Por favor seleccionar","Por favor seleccionar","Por favor seleccionar","Por favor seleccionar",0,"Por favor seleccionar"]
[null,"Otro","Otro",null,null,"Por favor seleccionar",null,"Por favor seleccionar",null,"Por favor seleccionar","Por favor seleccionar","Por favor seleccionar","Por favor seleccionar",0,"Por favor seleccionar"]
[null,"Otro","Otro",null,null,"Por favor seleccionar",null,"Por favor seleccionar",null,"Por favor seleccionar","Por favor seleccionar","Por favor seleccionar","Por favor seleccionar",0,"Por favor seleccionar"]
[null,"Otro","Otro",null,null,"Por favor seleccionar",null,"Por favor seleccionar",null,"Por favor seleccionar","Por favor seleccionar","Por favor seleccionar","Por favor seleccionar",0,"Por favor seleccionar"]

{"sheet":"3. Resumen ejecutivo","index":5,"n_rows":47,"n_cols":16,"rows_kept":47,"merged":[[1,1,3,3],[1,6,1,8],[2,6,2,8],[3,6,3,8],[6,5,6,13],[7,1,7,2],[7,3,12,3],[7,4,8,4],[7,5,7,6],[7,8,7,10],[8,1,8,2],[8,5,8,6],[8,8,8,10],[9,1,9,2],[9,4,10,4],[9,5,9,6],[9,8,9,10],[10,1,10,2],[10,5,10,6],[10,8,10,10],[11,1,11,2],[11,4,12,4],[11,5,11,6],[11,8,11,10],[12,1,12,2],[12,5,12,6],[12,8,12,10],[13,5,13,7],[13,8,13,11],[13,12,13,13],[14,5,14,13],[17,1,17,8],[17,10,17,17]]}
[null,"Herramienta de servicios de gestión de PEI de la ONUDI (V1)"]
[null,"RESUMEN EJECUTIVO DE LOS SERVICIOS DE VALOR AGREGADO SELECCIONADOS PARA LA ACCIÓN A CORTO PLAZO",{"$nulls":3},"Nombre del parque industrial:",{"$f":"'1. Retos y oportunidades'!G2","v":"Ingresar el nombre del parque industrial"}]
[{"$nulls":5},"Periodo de evaluación:",{"$f":"'1. Retos y oportunidades'!G3","v":"Ingresar fecha"}]
[{"$nulls":5},"Nombre de los asesores:",{"$f":"'1. Retos y oportunidades'!G4","v":"Ingresar nombre"}]
[]
[]
[{"$nulls":5},"PRIORIZACIÓN DE NUEVOS SERVICIOS DE GESTIÓN DE PARQUES E INDUSTRIA 4.0 PARA ACCIONES A CORTO PLAZO"]
[null,"TOTAL DE NUEVOS SERVICIOS PROPUESTOS",null,"ALCANCE","Alto","Todo",null,{"$f":"COUNTIFS('3.Revisar los servicios de gest'!J12:J50,\"High\",'3.Revisar los servicios de gest'!K12:K50,\"Low\",'3.Revisar los servicios de gest'!O12:O50,\"Yes\")+COUNTIFS('3. Repaso de servicios 4.0(opc)'!J12:J43,\"High\",'3. Repaso de servicios 4.0(opc)'!K12:K43,\"Low\",'3. Repaso de servicios 4.0(opc)'!O12:O43,\"Yes\")","v":0},"Todo",null,null,{"$f":"COUNTIFS('3.Revisar los servicios de gest'!J12:J50,\"High\",'3.Revisar los servicios de gest'!K12:K50,\"Medium\",'3.Revisar los servicios de gest'!O12:O50,\"Yes\")+COUNTIFS('3. Repaso de servicios 4.0(opc)'!J12:J43,\"High\",'3. Repaso de servicios 4.0(opc)'!K12:K43,\"Medium\",'3. Repaso de servicios 4.0(opc)'!O12:O43,\"Yes\")","v":0},"Todo",{"$f":"COUNTIFS('3.Revisar los servicios de gest'!J12:J50,\"High\",'3.Revisar los servicios de gest'!K12:K50,\"High\",'3.Revisar los servicios de gest'!O12:O50,\"Yes\")+COUNTIFS('3. Repaso de servicios 4.0(opc)'!J12:J43,\"High\",'3. Repaso de servicios 4.0(opc)'!K12:K43,\"High\",'3. Repaso de servicios 4.0(opc)'!O12:O43,\"Yes\")","v":0}]
[null,{"$f":"B11+B13","v":0},{"$nulls":3},"Gran interés de los gestores y arrendatarios del parque",null,{"$f":"COUNTIFS('3.Revisar los servicios de gest'!J12:J50,\"High\",'3.Revisar los servicios de gest'!K12:K50,\"Low\",'3.Revisar los servicios de gest'!L12:L50,\"High\",'3.Revisar los servicios de gest'!M12:M50,\"High\",'3.Revisar los servicios de gest'!O12:O50,\"Yes\")+COUNTIFS('3. Repaso de servicios 4.0(opc)'!J12:J43,\"High\",'3. Repaso de servicios 4.0(opc)'!K12:K43,\"Low\",'3. Repaso de servicios 4.0(opc)'!L12:L43,\"High\",'3. Repaso de servicios 4.0(opc)'!M12:M43,\"High\",'3. Repaso de servicios 4.0(opc)'!O12:O43,\"Yes\")","v":0},"Gran interés de los gestores y arrendatarios del parque",null,null,{"$f":"COUNTIFS('3.Revisar los servicios de gest'!J12:J50,\"High\",'3.Revisar los servicios de gest'!K12:K50,\"Medium\",'3.Revisar los servicios de gest'!L12:L50,\"High\",'3.Revisar los servicios de gest'!M12:M50,\"High\",'3.Revisar los servicios de gest'!O12:O50,\"Yes\")+COUNTIFS('3. Repaso de servicios 4.0(opc)'!J12:J43,\"High\",'3. Repaso de servicios 4.0(opc)'!K12:K43,\"Medium\",'3. Repaso de servicios 4.0(opc)'!L12:L43,\"High\",'3. Repaso de servicios 4.0(opc)'!M12:M43,\"High\",'3. Repaso de servicios 4.0(opc)'!O12:O43,\"Yes\")","v":0},"Gran interés de los gestores y arrendatarios del parque",{"$f":"COUNTIFS('3.Revisar los servicios de gest'!J12:J50,\"High\",'3.Revisar los servicios de gest'!K12:K50,\"High\",'3.Revisar los servicios de gest'!L12:L50,\"High\",'3.Revisar los servicios de gest'!M12:M50,\"High\",'3.Revisar los servicios de gest'!O12:O50,\"Yes\")+COUNTIFS('3. Repaso de servicios 4.0(opc)'!J12:J43,\"High\",'3. Repaso de servicios 4.0(opc)'!K12:K43,\"High\",'3. Repaso de servicios 4.0(opc)'!L12:L43,\"High\",'3. Repaso de servicios 4.0(opc)'!M12:M43,\"High\",'3. Repaso de servicios 4.0(opc)'!O12:O43,\"Yes\")","v":0}]
[null,"Total de nuevos servicios de gestión de parques para acciones a corto plazo:",null,null,"Medio","Todo",null,{"$f":"COUNTIFS('3.Revisar los servicios de gest'!J12:J50,\"Medium\",'3.Revisar los servicios de gest'!K12:K50,\"Low\",'3.Revisar los servicios de gest'!O12:O50,\"Yes\")+COUNTIFS('3. Repaso de servicios 4.0(opc)'!J12:J43,\"Medium\",'3. Repaso de servicios 4.0(opc)'!K12:K43,\"Low\",'3. Repaso de servicios 4.0(opc)'!O12:O43,\"Yes\")","v":0},"Todo",null,null,{"$f":"COUNTIFS('3.Revisar los servicios de gest'!J12:J50,\"Medium\",'3.Revisar los servicios de gest'!K12:K50,\"Medium\",'3.Revisar los servicios de gest'!O12:O50,\"Yes\")+COUNTIFS('3. Repaso de servicios 4.0(opc)'!J12:J43,\"Medium\",'3. Repaso de servicios 4.0(opc)'!K12:K43,\"Medium\",'3. Repaso de servicios 4.0(opc)'!O12:O43,\"Yes\")","v":0},"Todo",{"$f":"COUNTIFS('3.Revisar los servicios de gest'!J12:J50,\"Medium\",'3.Revisar los servicios de gest'!K12:K50,\"High\",'3.Revisar los servicios de gest'!O12:O50,\"Yes\")+COUNTIFS('3. Repaso de servicios 4.0(opc)'!J12:J43,\"Medium\",'3. Repaso de servicios 4.0(opc)'!K12:K43,\"High\",'3. Repaso de servicios 4.0(opc)'!O12:O43,\"Yes\")","v":0}]
[null,{"$f":"COUNTIF('3.Revisar los servicios de gest'!O12:O50,\"Yes\")","v":0},{"$nulls":3},"Gran interés de los gestores y arrendatarios del parque",null,{"$f":"COUNTIFS('3.Revisar los servicios de gest'!J12:J50,\"Medium\",'3.Revisar los servicios de gest'!K12:K50,\"Low\",'3.Revisar los servicios de gest'!L12:L50,\"High\",'3.Revisar los servicios de gest'!M12:M50,\"High\",'3.Revisar los servicios de gest'!O12:O50,\"Yes\")+COUNTIFS('3. Repaso de servicios 4.0(opc)'!J12:J43,\"Medium\",'3. Repaso de servicios 4.0(opc)'!K12:K43,\"Low\",'3. Repaso de servicios 4.0(opc)'!L12:L43,\"High\",'3. Repaso de servicios 4.0(opc)'!M12:M43,\"High\",'3. Repaso de servicios 4.0(opc)'!O12:O43,\"Yes\")","v":0},"Gran interés de los gestores y arrendatarios del parque",null,null,{"$f":"COUNTIFS('3.Revisar los servicios de gest'!J12:J50,\"Medium\",'3.Revisar los servicios de gest'!K12:K50,\"Medium\",'3.Revisar los servicios de gest'!L12:L50,\"High\",'3.Revisar los servicios de gest'!M12:M50,\"High\",'3.Revisar los servicios de gest'!O12:O50,\"Yes\")+COUNTIFS('3. Repaso de servicios 4.0(opc)'!J12:J43,\"Medium\",'3. Repaso de servicios 4.0(opc)'!K12:K43,\"Medium\",'3. Repaso de servicios 4.0(opc)'!L12:L43,\"High\",'3. Repaso de servicios 4.0(opc)'!M12:M43,\"High\",'3. Repaso de servicios 4.0(opc)'!O12:O43,\"Yes\")","v":0},"Gran interés de los gestores y arrendatarios del parque",{"$f":"COUNTIFS('3.Revisar los servicios de gest'!J12:J50,\"Medium\",'3.Revisar los servicios de gest'!K12:K50,\"High\",'3.Revisar los servicios de gest'!L12:L50,\"High\",'3.Revisar los servicios de gest'!M12:M50,\"High\",'3.Revisar los servicios de gest'!O12:O50,\"Yes\")+COUNTIFS('3. Repaso de servicios 4.0(opc)'!J12:J43,\"Medium\",'3. Repaso de servicios 4.0(opc)'!K12:K43,\"High\",'3. Repaso de servicios 4.0(opc)'!L12:L43,\"High\",'3. Repaso de servicios 4.0(opc)'!M12:M43,\"High\",'3. Repaso de servicios 4.0(opc)'!O12:O43,\"Yes\")","v":0}]
[null,"Total de nuevos servicios de Industria 4.0 para acciones a corto plazo:",null,null,"Bajo","Todo",null,{"$f":"COUNTIFS('3.Revisar los servicios de gest'!J12:J50,\"Low\",'3.Revisar los servicios de gest'!K12:K50,\"Low\",'3.Revisar los servicios de gest'!O12:O50,\"Yes\")+COUNTIFS('3. Repaso de servicios 4.0(opc)'!J12:J43,\"Low\",'3. Repaso de servicios 4.0(opc)'!K12:K43,\"Low\",'3. Repaso de servicios 4.0(opc)'!O12:O43,\"Yes\")","v":0},"Todo",null,null,{"$f":"COUNTIFS('3.Revisar los servicios de gest'!J12:J50,\"Low\",'3.Revisar los servicios de gest'!K12:K50,\"Medium\",'3.Revisar los servicios de gest'!O12:O50,\"Yes\")+COUNTIFS('3. Repaso de servicios 4.0(opc)'!J12:J43,\"Low\",'3. Repaso de servicios 4.0(opc)'!K12:K43,\"Medium\",'3. Repaso de servicios 4.0(opc)'!O12:O43,\"Yes\")","v":0},"Todo",{"$f":"COUNTIFS('3.Revisar los servicios de gest'!J12:J50,\"Low\",'3.Revisar los servicios de gest'!K12:K50,\"High\",'3.Revisar los servicios de gest'!O12:O50,\"Yes\")+COUNTIFS('3. Repaso de servicios 4.0(opc)'!J12:J43,\"Low\",'3. Repaso de servicios 4.0(opc)'!K12:K43,\"High\",'3. Repaso de servicios 4.0(opc)'!O12:O43,\"Yes\")","v":0}]
[null,{"$f":"COUNTIF('3. Repaso de servicios 4.0(opc)'!O12:O43,\"Yes\")","v":0},{"$nulls":3},"Gran interés de los gestores y arrendatarios del parque",null,{"$f":"COUNTIFS('3.Revisar los servicios de gest'!J12:J50,\"Low\",'3.Revisar los servicios de gest'!K12:K50,\"Low\",'3.Revisar los servicios de gest'!L12:L50,\"High\",'3.Revisar los servicios de gest'!M12:M50,\"High\",'3.Revisar los servicios de gest'!O12:O50,\"Yes\")+COUNTIFS('3. Repaso de servicios 4.0(opc)'!J12:J43,\"Low\",'3. Repaso de servicios 4.0(opc)'!K12:K43,\"Low\",'3. Repaso de servicios 4.0(opc)'!L12:L43,\"High\",'3. Repaso de servicios 4.0(opc)'!M12:M43,\"High\",'3. Repaso de servicios 4.0(opc)'!O12:O43,\"Yes\")","v":0},"Gran interés de los gestores y arrendatarios del parque",null,null,{"$f":"COUNTIFS('3.Revisar los servicios de gest'!J12:J50,\"Low\",'3.Revisar los servicios de gest'!K12:K50,\"Medium\",'3.Revisar los servicios de gest'!L12:L50,\"High\",'3.Revisar los servicios de gest'!M12:M50,\"High\",'3.Revisar los servicios de gest'!O12:O50,\"Yes\")+COUNTIFS('3. Repaso de servicios 4.0(opc)'!J12:J43,\"Low\",'3. Repaso de servicios 4.0(opc)'!K12:K43,\"Medium\",'3. Repaso de servicios 4.0(opc)'!L12:L43,\"High\",'3. Repaso de servicios 4.0(opc)'!M12:M43,\"High\",'3. Repaso de servicios 4.0(opc)'!O12:O43,\"Yes\")","v":0},"Gran interés de los gestores y arrendatarios del parque",{"$f":"COUNTIFS('3.Revisar los servicios de gest'!J12:J50,\"Low\",'3.Revisar los servicios de gest'!K12:K50,\"High\",'3.Revisar los servicios de gest'!L12:L50,\"High\",'3.Revisar los servicios de gest'!M12:M50,\"High\",'3.Revisar los servicios de gest'!O12:O50,\"Yes\")+COUNTIFS('3.Revisar los servicios de gest'!J12:J39,\"Low\",'3.Revisar los servicios de gest'!K12:K39,\"High\",'3.Revisar los servicios de gest'!L12:L39,\"High\",'3.Revisar los servicios de gest'!M12:M39,\"High\",'3. Repaso de servicios 4.0(opc)'!O12:O43,\"Yes\")","v":{"$error":"#VALUE!"}}]
[{"$nulls":5},"Bajo",null,null,"Medio",{"$nulls":3},"Alto"]
[{"$nulls":5},"BENEFICIOS"]
[]
[]
[null,"Propuesta de nuevos servicios de valor añadido para la gestión de parques",{"$nulls":8},"Nuevos servicios propuestos para la Industria 4.0"]
{"$rows_empty":10}
[null,"Categoría de servicio principal","Sub-categoría","Nuevo servicio de valor añadido definido para su parque industrial","¿Cuál es el ALCANCE del servicio?","¿Cuán BENEFICIOSO puede ser el servicio?","INTERÉS en las empresas arrendatarias",{"$nulls":3},"Categoría de servicio principal","Sub-categoría","Nuevo servicio de Industria 4.0 definido para su parque industrial","¿Cuál es el ALCANCE del servicio?","¿Cuán BENEFICIOSO puede ser el servicio?","INTERÉS en las empresas arrendatarias"]
[null,"Soporte Empresarial","Desarrollo empresarial y negocios",null,"Por favor seleccionar","Por favor seleccionar","Por favor seleccionar",{"$nulls":3},"Soporte Empresarial","Centros de servicios, redes y agrupaciones",null,"Por favor seleccionar","Por favor seleccionar","Por favor seleccionar"]
[null,null,"Finanzas y banca",null,"Por favor seleccionar","Por favor seleccionar","Por favor seleccionar",{"$nulls":3},"Medioambiente","Energía",null,"Por favor seleccionar","Por favor seleccionar","Por favor seleccionar"]
[null,null,"Autoridades gubernamentales",null,"Por favor seleccionar","Por favor seleccionar","Por favor seleccionar",{"$nulls":4},"Residuos",null,"Por favor seleccionar","Por favor seleccionar","Por favor seleccionar"]
[null,null,"Adquisiciones",null,"Por favor seleccionar","Por favor seleccionar","Por favor seleccionar",{"$nulls":4},"Agua",null,"Por favor seleccionar","Por favor seleccionar","Por favor seleccionar"]
[null,null,"Investigación y desarrollo (IyD)",null,"Por favor seleccionar","Por favor seleccionar","Por favor seleccionar",{"$nulls":3},"Infraestructura y Servicios públicos","Edificios",null,"Por favor seleccionar","Por favor seleccionar","Por favor seleccionar"]
[null,"Colaboración","Comunidad",null,"Por favor seleccionar","Por favor seleccionar","Por favor seleccionar",{"$nulls":4},"Infraestructura",null,"Por favor seleccionar","Por favor seleccionar","Por favor seleccionar"]
[null,null,"Comisiones de empresas arrendatarias",null,"Por favor seleccionar","Por favor seleccionar","Por favor seleccionar",{"$nulls":4},"Mantenimiento",null,"Por favor seleccionar","Por favor seleccionar","Por favor seleccionar"]
[null,"Medioambiente","Energía",null,"Por favor seleccionar","Por favor seleccionar","Por favor seleccionar",{"$nulls":4},"Seguridad",null,"Por favor seleccionar","Por favor seleccionar","Por favor seleccionar"]
[null,null,"Eficiencia de recursos",null,"Por favor seleccionar","Por favor seleccionar","Por favor seleccionar",{"$nulls":4},"Transporte",null,"Por favor seleccionar","Por favor seleccionar","Por favor seleccionar"]
[null,null,"Desperdicios",null,"Por favor seleccionar","Por favor seleccionar","Por favor seleccionar",{"$nulls":3},"Gestión","Big data",null,"Por favor seleccionar","Por favor seleccionar","Por favor seleccionar"]
[null,null,"Agua",null,"Por favor seleccionar","Por favor seleccionar","Por favor seleccionar",{"$nulls":4},"Comunicaciones",null,"Por favor seleccionar","Por favor seleccionar","Por favor seleccionar"]
[null,"Infraestructura y Servicios públicos","Edificios",null,"Por favor seleccionar","Por favor seleccionar","Por favor seleccionar",{"$nulls":4},"Monitoreo",null,"Por favor seleccionar","Por favor seleccionar","Por favor seleccionar"]
[null,null,"Seguridad",null,"Por favor seleccionar","Por favor seleccionar","Por favor seleccionar",{"$nulls":3},"Otros","Otros",null,"Por favor seleccionar","Por favor seleccionar","Por favor seleccionar"]
[null,null,"Transporte",null,"Por favor seleccionar","Por favor seleccionar","Por favor seleccionar",{"$nulls":3},"Personas","Salud",null,"Por favor seleccionar","Por favor seleccionar","Por favor seleccionar"]
[null,"Gestión","Monitoreo y sistemas",null,"Por favor seleccionar","Por favor seleccionar","Por favor seleccionar",{"$nulls":4},"Trabajadores y competencias",null,"Por favor seleccionar","Por favor seleccionar","Por favor seleccionar"]
[null,"Otros","Otros",null,"Por favor seleccionar","Por favor seleccionar","Por favor seleccionar"]
[null,"Personas","Salud",null,"Por favor seleccionar","Por favor seleccionar","Por favor seleccionar"]
[null,null,"Trabajadores y competencias",null,"Por favor seleccionar","Por favor seleccionar","Por favor seleccionar"]

{"sheet":"4. Contenido de servicios","index":6,"n_rows":10,"n_cols":13,"rows_kept":10,"merged":[[1,1,3,2],[6,1,6,9],[8,3,8,5],[8,6,8,8],[8,9,8,11],[8,12,9,12]]}
[null,"Herramienta de servicios de gestión de PEI de la ONUDI (V1)"]
[null,"ALCANCE DE LOS SERVICIOS DE VALOR AGREGADO PRIORITARIOS",null,null,"Nombre del parque industrial:",{"$f":"'1. Retos y oportunidades'!G2","v":"Ingresar el nombre del parque industrial"}]
[{"$nulls":4},"Periodo de evaluación:",{"$f":"'1. Retos y oportunidades'!G3","v":"Ingresar fecha"}]
[{"$nulls":4},"Nombre de los asesores:",{"$f":"'1. Retos y oportunidades'!G4","v":"Ingresar nombre"}]
[]
[]
[null,"Instrucciones: Para apoyar al desarrollo posterior, este paso ayuda a la gestión del parque y a las empresas arrendatarias a determinar el alcance de los servicios de valor añadido prioritarios, incluidas las opciones de reparto de costos/ingresos y la posible implantación de los servicios seleccionados."]
[]
[{"$nulls":3},"ESPECIFICACIÓN DEL SERVICIO DE VALOR AÑADIDO",null,null,"REPARTO DE COSTOS E INGRESOS",null,null,"IMPLEMENTACIÓN",null,null,"Comentarios"]
[null,"Tema","Servicios prioritarios de valor añadido para la gestión de los parques seleccionados para acciones a corto plazo","¿Cuáles son las empresas arrendatarias destinatarias del servicio de valor añadido?","¿Cuál es la propuesta de valor?","¿Cuáles son las áreas de interés y las características específicas que deben incluirse en los servicios de valor añadido?","Por favor indicar costos y flujos de ingreso","¿Pueden ofrecerse los servicios como parte de las tarifas de gestión de parques existentes?","¿Cuáles son las opciones para la recuperación de costos y/o reparto de beneficios?","¿Cuál podría ser la modalidad de prestación del servicio de valor añadido?\n(por ejemplo, mediante la gestión del parque, los inquilinos, una empresa especializada, externalización)","¿Cuáles son los factores de éxito para desarrollar e implantar servicios de valor añadido?","¿Cuáles son los retos potenciales y los medios para abordarlos?"]

{"sheet":"5.Plan de acción","index":7,"n_rows":80,"n_cols":10,"rows_kept":80,"merged":[[1,1,3,4],[1,6,1,7],[2,6,2,7],[3,6,3,7],[6,1,6,9],[8,1,9,1],[8,2,9,2],[8,3,8,8],[8,9,9,9],[9,3,9,5],[11,1,14,1],[11,2,14,2],[11,4,11,5],[12,4,12,5],[13,4,13,5],[14,4,14,5],[16,1,19,1],[16,2,19,2],[16,4,16,5],[17,4,17,5],[18,4,18,5],[19,4,19,5],[21,1,24,1],[21,2,24,2],[21,4,21,5],[22,4,22,5],[23,4,23,5],[24,4,24,5],[26,1,29,1],[26,2,29,2],[26,4,26,5],[27,4,27,5],[28,4,28,5],[29,4,29,5],[31,1,34,1],[31,2,34,2],[31,4,31,5],[32,4,32,5],[33,4,33,5],[34,4,34,5],[36,1,39,1],[36,2,39,2],[36,4,36,5],[37,4,37,5],[38,4,38,5],[39,4,39,5],[41,1,44,1],[41,2,44,2],[41,4,41,5],[41,9,44,9],[42,4,42,5],[43,4,43,5],[44,4,44,5],[46,1,49,1],[46,2,49,2],[46,4,46,5],[46,9,49,9],[47,4,47,5],[48,4,48,5],[49,4,49,5],[51,1,54,1],[51,2,54,2],[51,4,51,5],[52,4,52,5],[53,4,53,5],[54,4,54,5],[56,1,59,1],[56,2,59,2],[56,4,56,5],[57,4,57,5],[58,4,58,5],[59,4,59,5],[61,1,64,1],[61,2,64,2],[61,4,61,5],[62,4,62,5],[63,4,63,5],[64,4,64,5],[66,1,69,1],[66,2,69,2],[66,4,66,5],[67,4,67,5],[68,4,68,5],[69,4,69,5],[71,1,74,1],[71,2,74,2],[71,4,71,5],[72,4,72,5],[73,4,73,5],[74,4,74,5],[76,1,79,1],[76,2,79,2],[76,4,76,5],[77,4,77,5],[78,4,78,5],[79,4,79,5]]}
[null,"Herramienta de servicios de gestión de PEI de la ONUDI (V1)"]
[null,"PLANIFICACIÓN DE ACCIONES PARA LA GESTIÓN DE PARQUES DE VALOR AÑADIDO Y SERVICIOS DE INDUSTRIA 4.0",{"$nulls":3},"Nombre del parque industrial:",{"$f":"'1. Retos y oportunidades'!G2","v":"Ingresar el nombre del parque industrial"}]
[{"$nulls":5},"Periodo de evaluación:",{"$f":"'1. Retos y oportunidades'!G3","v":"Ingresar fecha"}]
[{"$nulls":5},"Nombre de los asesores:",{"$f":"'1. Retos y oportunidades'!G4","v":"Ingresar nombre"}]
[]
[]
[null,"Instrucciones: Tras la determinación del alcance de los servicios de valor añadido e industria 4.0 priorizados, este paso guía a la dirección del parque y a las empresas arrendatarias para elaborar un plan práctico con acciones a corto plazo para desarrollar e implementar los servicios seleccionados. Reconociendo que la gestión de los parques puede disponer ya de sistemas para gestionar sus actividades, se prevé que la planificación de acciones de los servicios priorizados se adapte a los sistemas existentes."]
[]
[null,"Tema","Servicios seleccionados para una acción a corto plazo","ACCIONES",{"$nulls":5},"Comentarios y avances \nde las acciones"]
[{"$nulls":3},"Principales medidas a corto plazo",null,null,"Rol principal","Rol de apoyo","Cronograma"]
[]
[{"$nulls":3},"a."]
[{"$nulls":3},"b."]
[{"$nulls":3},"c."]
[{"$nulls":3},"d."]
[]
[{"$nulls":3},"a."]
[{"$nulls":3},"b."]
[{"$nulls":3},"c."]
[{"$nulls":3},"d."]
[]
[{"$nulls":3},"a."]
[{"$nulls":3},"b."]
[{"$nulls":3},"c."]
[{"$nulls":3},"d."]
[]
[{"$nulls":3},"a."]
[{"$nulls":3},"b."]
[{"$nulls":3},"c."]
[{"$nulls":3},"d."]
[]
[{"$nulls":3},"a."]
[{"$nulls":3},"b."]
[{"$nulls":3},"c."]
[{"$nulls":3},"d."]
[]
[{"$nulls":3},"a."]
[{"$nulls":3},"b."]
[{"$nulls":3},"c."]
[{"$nulls":3},"d."]
[]
[{"$nulls":3},"a."]
[{"$nulls":3},"b."]
[{"$nulls":3},"c."]
[{"$nulls":3},"d."]
[]
[{"$nulls":3},"a."]
[{"$nulls":3},"b."]
[{"$nulls":3},"c."]
[{"$nulls":3},"d."]
[]
[{"$nulls":3},"a."]
[{"$nulls":3},"b."]
[{"$nulls":3},"c."]
[{"$nulls":3},"d."]
[]
[{"$nulls":3},"a."]
[{"$nulls":3},"b."]
[{"$nulls":3},"c."]
[{"$nulls":3},"d."]
[]
[{"$nulls":3},"a."]
[{"$nulls":3},"b."]
[{"$nulls":3},"c."]
[{"$nulls":3},"d."]
[]
[{"$nulls":3},"a."]
[{"$nulls":3},"b."]
[{"$nulls":3},"c."]
[{"$nulls":3},"d."]
[]
[{"$nulls":3},"a."]
[{"$nulls":3},"b."]
[{"$nulls":3},"c."]
[{"$nulls":3},"d."]
[]
[{"$nulls":3},"a."]
[{"$nulls":3},"b."]
[{"$nulls":3},"c."]
[{"$nulls":3},"d."]